Workbook

Sheet faktura
E1: Առաքման գիրք 25/17771 | L1: =E1 -> Առաքման գիրք 25/17771
A2: менеджер | H2: =A2 -> менеджер
A3: =чаренцаван!C4 -> Արսեն Կիրակոսյան | D3: Հաշիվ ֆակտուրա N | G3: 2 | H3: Արսեն Կիրակոսյան | L3: =D3 -> Հաշիվ ֆակտուրա N | N3: =G3 -> 2
A4: Կոտայքի մարզ ք. Աբովյան | H4: Կոտայքի մարզ ք. Աբովյան
A5: Կոլխոզնիկների 1 | D5: =DATE(YEAR(TODAY()),MONTH(F15),DAY(F15)) -> 2015-01-20 | H5: Կոլխոզնիկների 1 | L5: =DATE(YEAR(TODAY()),MONTH(M15),DAY(M15)) -> 2015-01-20
A6: ՀՎՀՀ 43070372 | H6: ՀՎՀՀ 43070372
A7: Առաքման կայարանը ՀՀ տարածք | E7: Պահեստ | F7: Գործառության N | G7: Ծածկագիր | H7: Առաքման կայարանը ՀՀ տարածք | L7: Պահեստ | M7: Գործառության N | N7: Ծածկագիր
S8: 2
A9: Վճարողը և նրա տվյալները | D9: =INDIRECT("чаренцаван!B" & S8+5) -> Ք.Չարենցավան 3-րդ թաղ. 38շ. | H9: =A9 -> Վճարողը և նրա տվյալները | L9: =D9 -> Ք.Չարենցավան 3-րդ թաղ. 38շ. | S9: список городов
A10: Մատակարարման միջոց՝ | D10: =INDIRECT("чаренцаван!C" & S8+5) -> Ա.Ձ. Մաթևոսյան Արմեն | H10: =A10 -> Մատակարարման միջոց՝ | L10: =D10 -> Ա.Ձ. Մաթևոսյան Արմեն
A11: ֆորդ տրանզիտ 33 sv 649 | D11: =чаренцаван!D5&INDIRECT("чаренцаван!D" & S8+5) -> ՀՎՀՀ35658975 | H11: =A11 -> ֆորդ տրանզիտ 33 sv 649 | L11: =D11 -> ՀՎՀՀ35658975 | S11: Чаренцаван
S12: Граздан
A13: Պայմանագրի-պատվերը | D13: Տեղերի քանակը | F13: Կշիռ | H13: Պայմանագրի-պատվերը | L13: Տեղերի քանակը | N13: Կշիռ | S13: Абовян
S14: Севан
D15: Բարձման ամսաթիվը | F15: =TODAY() -> 2015-01-20 | G15: Անդորրագիր N | K15: Բարձման ամսաթիվը | M15: =TODAY() -> 2015-01-20 | N15: Անդորրագիր N | Q15: =SUMIFS(чаренцаван!E6:E18,чаренцаван!B6:B18,D9,чаренцаван!C6:C18,D10) -> 0 | S15: Гавар
A16: Լրացուցիչ պայմաններ | H16: Լրացուցիչ պայմաններ | Q16: =SUMIFS(чаренцаван!E6:E18,чаренцаван!C6:C18,A19)+INDEX(чаренцаван!$E$6:$I$6,MATCH(1,--(чаренцаван!$E$3:$I$3<>""),0)) -> 8 | S16: Варденис
A17: Անվանումը | D17: Չափ.մվ. | E17: кол. | F17: цена | G17: Գումարը | H17: Անվանումը | K17: Չափ.մվ. | L17: кол. | M17: цена | N17: Գումարը | Q17: =INDEX(чаренцаван!$E$6:$I$6,MATCH(1,--(чаренцаван!$E$3:$I$3<>""),0)) -> 8
A18: =INDEX(чаренцаван!$E$3:$I$3,MATCH(1,--(чаренцаван!$E$7:$I$7<>""),0)) -> лим-0,5 | D18: հատ | E18: =INDIRECT("чаренцаван!E" & S8+5) -> 0 | F18: =IF(E18:E18>0,чаренцаван!E5,0) -> 0 | G18: =E18*F18 -> 0 | H18: =A18 -> лим-0,5 | K18: հատ | L18: =E18 -> 0 | M18: =F18 -> 0 | N18: =L18*M18 -> 0
A19: =INDEX(чаренцаван!$E$3:$I$3,MATCH(1,--(чаренцаван!$E$7:$I$7<>""),0)) -> лим-0,5 | D19: հատ | E19: =INDIRECT("чаренцаван!f" & S8+5) -> 24 | F19: =IF(E19:E19>0,чаренцаван!F5,0) -> 60 | G19: =E19*F19 -> 1440 | H19: =A19 -> лим-0,5 | K19: հատ | L19: =E19 -> 24 | M19: =F19 -> 60 | N19: =L19*M19 -> 1440
A20: =INDEX(чаренцаван!$E$3:$I$3,MATCH(1,--(чаренцаван!$E$7:$I$7<>""),0)) -> лим-0,5 | D20: հատ | E20: =INDIRECT("чаренцаван!G" & S8+5) -> 0 | F20: =IF(E20:E20>0,чаренцаван!G5,0) -> 0 | G20: =E20*F20 -> 0 | H20: лим-0,5 | K20: հատ | L20: =E20 -> 0 | M20: =F20 -> 0 | N20: =L20*M20 -> 0
A21: =INDEX(чаренцаван!$E$3:$I$3,MATCH(1,--(чаренцаван!$E$6:$I$6<>""),0)) -> лим-1,5 | D21: հատ | E21: =INDIRECT("чаренцаван!H" & S8+5) -> 0 | F21: =IF(E21:E21>0,чаренцаван!H5,0) -> 0 | G21: =E21*F21 -> 0 | H21: лим-1,5 | K21: հատ | L21: =E21 -> 0 | M21: =F21 -> 0 | N21: =L21*M21 -> 0
A22: =INDEX(чаренцаван!$E$3:$I$3,MATCH(1,--(чаренцаван!$E$6:$I$6<>""),0)) -> лим-1,5 | D22: հատ | E22: =INDIRECT("чаренцаван!i" & E4+5) -> 125 | F22: =IF(E22:E22>0,чаренцаван!I5,0) -> 125 | G22: =E22*F22 -> 15625 | H22: лим-1,5 | K22: հատ | L22: =E22 -> 125 | M22: =F22 -> 125 | N22: =L22*M22 -> 15625
A23: =INDEX(чаренцаван!$E$3:$I$3,MATCH(1,--(чаренцаван!$E$6:$I$6<>""),0)) -> лим-1,5 | D23: հատ | E23: =INDIRECT("чаренцаван!j" & E4+5) -> 0 | F23: =IF(E23:E23>0,чаренцаван!J5,0) -> 0 | G23: =E23*F23 -> 0 | H23: лим-1,5 | K23: հատ | L23: =E23 -> 0 | M23: =F23 -> 0 | N23: =L23*M23 -> 0
A24: =INDEX(чаренцаван!$E$3:$I$3,MATCH(1,--(чаренцаван!$E$6:$I$6<>""),0)) -> лим-1,5 | D24: հատ | E24: =INDIRECT("чаренцаван!k" & E4+5) -> 0 | F24: =IF(E24:E24>0,чаренцаван!K5,0) -> 0 | G24: =E24*F24 -> 0 | H24: лим-1,5 | K24: հատ | L24: =E24 -> 0 | M24: =F24 -> 0 | N24: =L24*M24 -> 0
A25: =INDEX(чаренцаван!$E$3:$I$3,MATCH(1,--(чаренцаван!$E$6:$I$6<>""),0)) -> лим-1,5 | D25: հատ | E25: =INDIRECT("чаренцаван!l" & E4+5) -> 0 | F25: =IF(E25:E25>0,чаренцаван!L5,0) -> 0 | G25: =E25*F25 -> 0 | H25: лим-1,5 | K25: հատ | L25: =E25 -> 0 | M25: =F25 -> 0 | N25: =L25*M25 -> 0
A26: =INDEX(чаренцаван!$E$3:$I$3,MATCH(1,--(чаренцаван!$E$6:$I$6<>""),0)) -> лим-1,5 | D26: հատ | E26: =INDIRECT("чаренцаван!m" & E8+5) -> 0 | F26: =IF(E26:E26>0,чаренцаван!M5,0) -> 0 | G26: =E26*F26 -> 0 | H26: лим-1,5 | K26: հատ | L26: =E26 -> 0 | M26: =F26 -> 0 | N26: =L26*M26 -> 0
A27: =INDEX(чаренцаван!$E$3:$I$3,MATCH(1,--(чаренцаван!$E$6:$I$6<>""),0)) -> лим-1,5 | D27: հատ | E27: =INDIRECT("чаренцаван!n" & E8+5) -> 0 | F27: =IF(E27:E27>0,чаренцаван!N5,0) -> 0 | G27: =E27*F27 -> 0 | H27: лим-1,5 | K27: հատ | L27: =E27 -> 0 | M27: =F27 -> 0 | N27: =L27*M27 -> 0
A28: =INDEX(чаренцаван!$E$3:$I$3,MATCH(1,--(чаренцаван!$E$6:$I$6<>""),0)) -> лим-1,5 | D28: հատ | E28: =INDIRECT("чаренцаван!o" & E8+5) -> 0 | F28: =IF(E28:E28>0,чаренцаван!O5,0) -> 0 | G28: =E28*F28 -> 0 | H28: лим-1,5 | K28: հատ | L28: =E28 -> 0 | M28: =F28 -> 0 | N28: =L28*M28 -> 0
A29: =INDEX(чаренцаван!$E$3:$I$3,MATCH(1,--(чаренцаван!$E$6:$I$6<>""),0)) -> лим-1,5 | D29: հատ | E29: =INDIRECT("чаренцаван!p" & E8+5) -> 0 | F29: =IF(E29:E29>0,чаренцаван!P5,0) -> 0 | G29: =E29*F29 -> 0 | H29: лим-1,5 | K29: հատ | L29: =E29 -> 0 | M29: =F29 -> 0 | N29: =L29*M29 -> 0
A30: =INDEX(чаренцаван!$E$3:$I$3,MATCH(1,--(чаренцаван!$E$6:$I$6<>""),0)) -> лим-1,5 | D30: հատ | E30: =INDIRECT("чаренцаван!q" & E12+5) -> 0 | F30: =IF(E30:E30>0,чаренцаван!Q5,0) -> 0 | G30: =E30*F30 -> 0 | H30: лим-1,5 | K30: հատ | L30: =E30 -> 0 | M30: =F30 -> 0 | N30: =L30*M30 -> 0
A31: =INDEX(чаренцаван!$E$3:$I$3,MATCH(1,--(чаренцаван!$E$6:$I$6<>""),0)) -> лим-1,5 | D31: հատ | E31: =INDIRECT("чаренцаван!r" & E12+5) -> 0 | F31: =IF(E31:E31>0,чаренцаван!R5,0) -> 0 | G31: =E31*F31 -> 0 | H31: лим-1,5 | K31: հատ | L31: =E31 -> 0 | M31: =F31 -> 0 | N31: =L31*M31 -> 0
A32: =INDEX(чаренцаван!$E$3:$I$3,MATCH(1,--(чаренцаван!$E$6:$I$6<>""),0)) -> лим-1,5 | D32: հատ | E32: =INDIRECT("чаренцаван!s" & E12+5) -> 0 | F32: =IF(E32:E32>0,чаренцаван!S5,0) -> 0 | G32: =E32*F32 -> 0 | H32: лим-1,5 | K32: հատ | L32: =E32 -> 0 | M32: =F32 -> 0 | N32: =L32*M32 -> 0
A33: =INDEX(чаренцаван!$E$3:$I$3,MATCH(1,--(чаренцаван!$E$6:$I$6<>""),0)) -> лим-1,5 | D33: հատ | E33: =INDIRECT("чаренцаван!s" & E13+5) -> 0 | F33: =IF(E33:E33>0,чаренцаван!S6,0) -> 0 | G33: =E33*F33 -> 0 | H33: лим-1,5 | K33: հատ | L33: =E33 -> 0 | M33: =F33 -> 0 | N33: =L33*M33 -> 0
A34: ԸՆԴՀԱՆՈՒՐԸ | G34: =SUM(G18:G27) -> 17065 | H34: ԸՆԴՀԱՆՈՒՐԸ | N34: =SUM(N19:N28) -> 17065
A35: Հանձնեց՝ Հ.Ղամբարյան | D35: Ընդհունեց՝ | H35: Հանձնեց՝ Հ.Ղամբարյան | K35: Ընդհունեց՝

Sheet чаренцаван
B3: адресс | C3: имя фамиля | E3: лим-1,5 | F3: лим-0,5 | G3: тан-0,5 | H3: натур-сок 2 | I3: натур-сок 0.25 | J3: халодны кофе | K3: малоты кофе кг. | L3: малоты кофе Джови шт. | M3: малоты кофе Лидер шт. | N3: куруруз | O3: чипси 80 гр. | P3: чипси 200 гр. | Q3: Ади-Буди | R3: Соска | S3: Бочка | T3: Ведро
B4: Чаренцаван | C4: Արսեն Կիրակոսյան | U4: скидка | V4: сумма
D5: ՀՎՀՀ | E5: 80 | F5: 60 | G5: 80 | H5: 500 | I5: 125
A6: 1 | B6: Ք.Չարենցավան 3-րդ թաղ. 26շ. | C6: Ա.Ձ. Մաթևոսյան Արթուր | D6: 42256545 | E6: 8 | H6: 6 | I6: 10 | U6: 2000 | V6: =SUMPRODUCT($E$5:$T$5,E6:T6)-U6 -> 2890
A7: 2 | B7: Ք.Չարենցավան 3-րդ թաղ. 38շ. | C7: Ա.Ձ. Մաթևոսյան Արմեն | D7: 35658975 | F7: 24 | U7: 2000 | V7: =SUMPRODUCT($E$5:$T$5,E7:T7)-U7 -> -560
A8: 3 | B8: Ք.Չարենցավան 3-րդ թաղ. 40շ. | C8: Ա.Ձ. Սարգսյան Կարեն | D8: 25854565 | E8: 72 | F8: 48 | G8: 24 | H8: 8 | I8: 24 | U8: 2000 | V8: 15560
A9: 4 | B9: Ք.Չարենցավան 4-րդ թաղ. 2շ. | C9: Ա.Ձ. Կարապետյան Մարի | D9: 85456523 | F9: 24 | G9: 24 | H9: 8 | I9: 24 | U9: 2000 | V9: 8360
A10: 5 | B10: Ք.Չարենցավան 4-րդ թաղ. 20շ. | C10: Ա.Ձ. Մաթևոսյան Արթուր | D10: 77255533 | E10: 60 | H10: 16 | I10: 24 | U10: 2000 | V10: 13800
A11: 6 | B11: Ք.Չարենցավան 4-րդ թաղ. 30շ. | C11: Ա.Ձ. Մաթևոսյան Արթուր | D11: 89235085 | E11: 48 | F11: 24 | G11: 24 | H11: 8 | I11: 60 | U11: 2000 | V11: 16700
A12: 7 | B12: Ք.Չարենցավան 4-րդ թաղ. 36շ. | C12: abo | D12: 101214637.8 | E12: 50 | F12: 24 | G12: 24 | I12: 24 | U12: 2000 | V12: 8360
A13: 8 | B13: Ք.Չարենցավան 4-րդ թաղ. 45շ. | C13: kbo | D13: 113194190.2 | E13: 120 | F13: 24 | G13: 60 | H13: 8 | I13: 48 | U13: 2000 | V13: 23840
A14: 9 | B14: Ք.Չարենցավան 2-րդ թաղ. 16շ. | C14: mbo | D14: 125173742.6 | F14: 20 | H14: 20 | I14: 70 | U14: 2000 | V14: 17950
A15: 10 | B15: Ք.Չարենցավան 2-րդ թաղ. 20շ. | C15: Ա.Ձ. Մաթևոսյան Արթուր | D15: 137153295 | E15: 72 | F15: 48 | G15: 24 | H15: 20 | I15: 24 | U15: 2000 | V15: 21560
A16: 11 | B16: Ք.Չարենցավան 2-րդ թաղ. 26շ. | C16: Ա.Ձ. Մաթևոսյան Արթուր | D16: 149132847.4 | E16: 60 | F16: 24 | G16: 120 | H16: 8 | I16: 60 | U16: 2000 | V16: 25340
A17: 12 | B17: Ք.Չարենցավան 2-րդ թաղ. 46շ. | C17: Ա.Ձ. Մաթևոսյան Արթուր | D17: 161112399.8 | E17: 48 | F17: 60 | G17: 24 | H17: 20 | I17: 24 | U17: 2000 | V17: 20360
A18: 13 | B18: Ք.Չարենցավան 2-րդ թաղ. 48շ. | C18: Ա.Ձ. Մաթևոսյան Արթուր | D18: 173091952.2 | E18: 60 | F18: 24 | G18: 24 | H18: 8 | I18: 24 | U18: 2000 | V18: 13160
A19: 14 | B19: Ք.Չարենցավան 2-րդ թաղ. 48շ. | C19: Ա.Ձ. Մաթևոսյան Արթուր | D19: 173091952.2 | E19: 60 | F19: 24 | G19: 24 | H19: 8 | I19: 24 | U19: 2000 | V19: =SUMPRODUCT($E$5:$T$5,E19:T19)-U19 -> 13160
A20: 15 | B20: Ք.Չարենցավան 2-րդ թաղ. 48շ. | C20: Ա.Ձ. Մաթևոսյան Արթուր | D20: 173091952.2 | E20: 60 | F20: 24 | G20: 24 | H20: 8 | I20: 24 | U20: 2000 | V20: 13160
A21: 16 | B21: Ք.Չարենցավան 2-րդ թաղ. 48շ. | C21: Ա.Ձ. Մաթևոսյան Արթուր | D21: 173091952.2 | E21: 60 | F21: 24 | G21: 24 | H21: 8 | I21: 24 | U21: 2000 | V21: 13160
A22: 17 | B22: Ք.Չարենցավան 2-րդ թաղ. 48շ. | C22: Ա.Ձ. Մաթևոսյան Արթուր | D22: 173091952.2 | E22: 60 | F22: 24 | G22: 24 | H22: 8 | I22: 24 | U22: 2000 | V22: 13160
A23: 18 | B23: Ք.Չարենցավան 2-րդ թաղ. 48շ. | C23: Ա.Ձ. Մաթևոսյան Արթուր | D23: 173091952.2 | E23: 60 | F23: 24 | G23: 24 | H23: 8 | I23: 24 | U23: 2000 | V23: 13160
A24: 19 | B24: Ք.Չարենցավան 2-րդ թաղ. 48շ. | C24: Ա.Ձ. Մաթևոսյան Արթուր | D24: 173091952.2 | E24: 60 | F24: 24 | G24: 24 | H24: 8 | I24: 24 | U24: 2000 | V24: 13160 | AC24: =LOOKUP("",E6:I6&"",E3:I3) -> тан-0,5 | AD24: kbo | AE24: =SUMIFS(E6:E18,C6:C18,AD24) -> 120 | AF24: =SUM(чаренцаван:Варденис!E:E) -> 20988
A25: 20 | B25: Ք.Չարենցավան 2-րդ թաղ. 48շ. | C25: Ա.Ձ. Մաթևոսյան Արթուր | D25: 173091952.2 | E25: 60 | F25: 24 | G25: 24 | H25: 8 | I25: 24 | U25: 2000 | V25: 13160
A26: 21 | B26: Ք.Չարենցավան 2-րդ թաղ. 48շ. | C26: Ա.Ձ. Մաթևոսյան Արթուր | D26: 173091952.2 | E26: 60 | F26: 24 | G26: 24 | H26: 8 | I26: 24 | U26: 2000 | V26: 13160
A27: 22 | B27: Ք.Չարենցավան 2-րդ թաղ. 48շ. | C27: Ա.Ձ. Մաթևոսյան Արթուր | D27: 173091952.2 | E27: 60 | F27: 24 | G27: 24 | H27: 8 | I27: 24 | U27: 2000 | V27: 13160
A28: 23 | B28: Ք.Չարենցավան 2-րդ թաղ. 48շ. | C28: Ա.Ձ. Մաթևոսյան Արթուր | D28: 173091952.2 | E28: 60 | F28: 24 | G28: 24 | H28: 8 | I28: 24 | U28: 2000 | V28: 13160
A29: 24 | B29: Ք.Չարենցավան 2-րդ թաղ. 48շ. | C29: Ա.Ձ. Մաթևոսյան Արթուր | D29: 173091952.2 | E29: 60 | F29: 24 | G29: 24 | H29: 8 | I29: 24 | U29: 2000 | V29: 13160
A30: 25 | B30: Ք.Չարենցավան 2-րդ թաղ. 48շ. | C30: Ա.Ձ. Մաթևոսյան Արթուր | D30: 173091952.2 | E30: 60 | F30: 24 | G30: 24 | H30: 8 | I30: 24 | U30: 2000 | V30: 13160
A31: 26 | B31: Ք.Չարենցավան 2-րդ թաղ. 48շ. | C31: Ա.Ձ. Մաթևոսյան Արթուր | D31: 173091952.2 | E31: 60 | F31: 24 | G31: 24 | H31: 8 | I31: 24 | U31: 2000 | V31: 13160
A32: 27 | B32: Ք.Չարենցավան 2-րդ թաղ. 48շ. | C32: Ա.Ձ. Մաթևոսյան Արթուր | D32: 173091952.2 | E32: 60 | F32: 24 | G32: 24 | H32: 8 | I32: 24 | U32: 2000 | V32: 13160
A33: 28 | B33: Ք.Չարենցավան 2-րդ թաղ. 48շ. | C33: Ա.Ձ. Մաթևոսյան Արթուր | D33: 173091952.2 | E33: 60 | F33: 24 | G33: 24 | H33: 8 | I33: 24 | U33: 2000 | V33: 13160
A34: 29 | B34: Ք.Չարենցավան 2-րդ թաղ. 48շ. | C34: Ա.Ձ. Մաթևոսյան Արթուր | D34: 173091952.2 | E34: 60 | F34: 24 | G34: 24 | H34: 8 | I34: 24 | U34: 2000 | V34: 13160
A35: 30 | B35: Ք.Չարենցավան 2-րդ թաղ. 48շ. | C35: Ա.Ձ. Մաթևոսյան Արթուր | D35: 173091952.2 | E35: 60 | F35: 24 | G35: 24 | H35: 8 | I35: 24 | U35: 2000 | V35: 13160
A36: 31 | B36: Ք.Չարենցավան 2-րդ թաղ. 48շ. | C36: Ա.Ձ. Մաթևոսյան Արթուր | D36: 173091952.2 | E36: 60 | F36: 24 | G36: 24 | H36: 8 | I36: 24 | U36: 2000 | V36: 13160
A37: 32 | B37: Ք.Չարենցավան 2-րդ թաղ. 48շ. | C37: Ա.Ձ. Մաթևոսյան Արթուր | D37: 173091952.2 | E37: 60 | F37: 24 | G37: 24 | H37: 8 | I37: 24 | U37: 2000 | V37: 13160
A38: 33 | B38: Ք.Չարենցավան 2-րդ թաղ. 48շ. | C38: Ա.Ձ. Մաթևոսյան Արթուր | D38: 173091952.2 | E38: 60 | F38: 24 | G38: 24 | H38: 8 | I38: 24 | U38: 2000 | V38: 13160
A39: 34 | B39: Ք.Չարենցավան 2-րդ թաղ. 48շ. | C39: Ա.Ձ. Մաթևոսյան Արթուր | D39: 173091952.2 | E39: 60 | F39: 24 | G39: 24 | H39: 8 | I39: 24 | U39: 2000 | V39: 13160
A40: 35 | B40: Ք.Չարենցավան 2-րդ թաղ. 48շ. | C40: Ա.Ձ. Մաթևոսյան Արթուր | D40: 173091952.2 | E40: 60 | F40: 24 | G40: 24 | H40: 8 | I40: 24 | U40: 2000 | V40: 13160
A41: 36 | B41: Ք.Չարենցավան 2-րդ թաղ. 48շ. | C41: Ա.Ձ. Մաթևոսյան Արթուր | D41: 173091952.2 | E41: 60 | F41: 24 | G41: 24 | H41: 8 | I41: 24 | U41: 2000 | V41: 13160
A42: 37 | B42: Ք.Չարենցավան 2-րդ թաղ. 48շ. | C42: Ա.Ձ. Մաթևոսյան Արթուր | D42: 173091952.2 | E42: 60 | F42: 24 | G42: 24 | H42: 8 | I42: 24 | U42: 2000 | V42: 13160
A43: 38 | B43: Ք.Չարենցավան 2-րդ թաղ. 48շ. | C43: Ա.Ձ. Մաթևոսյան Արթուր | D43: 173091952.2 | E43: 60 | F43: 24 | G43: 24 | H43: 8 | I43: 24 | U43: 2000 | V43: 13160
A44: 39 | B44: Ք.Չարենցավան 2-րդ թաղ. 48շ. | C44: Ա.Ձ. Մաթևոսյան Արթուր | D44: 173091952.2 | E44: 60 | F44: 24 | G44: 24 | H44: 8 | I44: 24 | U44: 2000 | V44: 13160
A45: 40 | B45: Ք.Չարենցավան 2-րդ թաղ. 48շ. | C45: Ա.Ձ. Մաթևոսյան Արթուր | D45: 173091952.2 | E45: 60 | F45: 24 | G45: 24 | H45: 8 | I45: 24 | U45: 2000 | V45: 13160
A46: 41 | B46: Ք.Չարենցավան 2-րդ թաղ. 48շ. | C46: Ա.Ձ. Մաթևոսյան Արթուր | D46: 173091952.2 | E46: 60 | F46: 24 | G46: 24 | H46: 8 | I46: 24 | U46: 2000 | V46: 13160
A47: 42 | B47: Ք.Չարենցավան 2-րդ թաղ. 48շ. | C47: Ա.Ձ. Մաթևոսյան Արթուր | D47: 173091952.2 | E47: 60 | F47: 24 | G47: 24 | H47: 8 | I47: 24 | U47: 2000 | V47: 13160
A48: 43 | B48: Ք.Չարենցավան 2-րդ թաղ. 48շ. | C48: Ա.Ձ. Մաթևոսյան Արթուր | D48: 173091952.2 | E48: 60 | F48: 24 | G48: 24 | H48: 8 | I48: 24 | U48: 2000 | V48: 13160
A49: 44 | B49: Ք.Չարենցավան 2-րդ թաղ. 48շ. | C49: Ա.Ձ. Մաթևոսյան Արթուր | D49: 173091952.2 | E49: 60 | F49: 24 | G49: 24 | H49: 8 | I49: 24 | U49: 2000 | V49: 13160
A50: 45 | B50: Ք.Չարենցավան 2-րդ թաղ. 48շ. | C50: Ա.Ձ. Մաթևոսյան Արթուր | D50: 173091952.2 | E50: 60 | F50: 24 | G50: 24 | H50: 8 | I50: 24 | U50: 2000 | V50: 13160
A51: 46 | B51: Ք.Չարենցավան 2-րդ թաղ. 48շ. | C51: Ա.Ձ. Մաթևոսյան Արթուր | D51: 173091952.2 | E51: 60 | F51: 24 | G51: 24 | H51: 8 | I51: 24 | U51: 2000 | V51: 13160
A52: 47 | B52: Ք.Չարենցավան 2-րդ թաղ. 48շ. | C52: Ա.Ձ. Մաթևոսյան Արթուր | D52: 173091952.2 | E52: 60 | F52: 24 | G52: 24 | H52: 8 | I52: 24 | U52: 2000 | V52: 13160
A53: 48 | B53: Ք.Չարենցավան 2-րդ թաղ. 48շ. | C53: Ա.Ձ. Մաթևոսյան Արթուր | D53: 173091952.2 | E53: 60 | F53: 24 | G53: 24 | H53: 8 | I53: 24 | U53: 2000 | V53: 13160
A54: 49 | B54: Ք.Չարենցավան 2-րդ թաղ. 48շ. | C54: Ա.Ձ. Մաթևոսյան Արթուր | D54: 173091952.2 | E54: 60 | F54: 24 | G54: 24 | H54: 8 | I54: 24 | U54: 2000 | V54: 13160
A55: 50 | B55: Ք.Չարենցավան 2-րդ թաղ. 48շ. | C55: Ա.Ձ. Մաթևոսյան Արթուր | D55: 173091952.2 | E55: 60 | F55: 24 | G55: 24 | H55: 8 | I55: 24 | U55: 2000 | V55: 13160
A56: 51 | B56: Ք.Չարենցավան 2-րդ թաղ. 48շ. | C56: Ա.Ձ. Մաթևոսյան Արթուր | D56: 173091952.2 | E56: 60 | F56: 24 | G56: 24 | H56: 8 | I56: 24 | U56: 2000 | V56: 13160
A57: 52 | B57: Ք.Չարենցավան 2-րդ թաղ. 48շ. | C57: Ա.Ձ. Մաթևոսյան Արթուր | D57: 173091952.2 | E57: 60 | F57: 24 | G57: 24 | H57: 8 | I57: 24 | U57: 2000 | V57: 13160
A58: 53 | B58: Ք.Չարենցավան 2-րդ թաղ. 48շ. | C58: Ա.Ձ. Մաթևոսյան Արթուր | D58: 173091952.2 | E58: 60 | F58: 24 | G58: 24 | H58: 8 | I58: 24 | U58: 2000 | V58: 13160
A59: 54 | B59: Ք.Չարենցավան 2-րդ թաղ. 48շ. | C59: Ա.Ձ. Մաթևոսյան Արթուր | D59: 173091952.2 | E59: 60 | F59: 24 | G59: 24 | H59: 8 | I59: 24 | U59: 2000 | V59: 13160
A60: 55 | B60: Ք.Չարենցավան 2-րդ թաղ. 48շ. | C60: Ա.Ձ. Մաթևոսյան Արթուր | D60: 173091952.2 | E60: 60 | F60: 24 | G60: 24 | H60: 8 | I60: 24 | U60: 2000 | V60: 13160
A61: 56 | B61: Ք.Չարենցավան 2-րդ թաղ. 48շ. | C61: Ա.Ձ. Մաթևոսյան Արթուր | D61: 173091952.2 | E61: 60 | F61: 24 | G61: 24 | H61: 8 | I61: 24 | U61: 2000 | V61: 13160
A62: 57 | B62: Ք.Չարենցավան 2-րդ թաղ. 48շ. | C62: Ա.Ձ. Մաթևոսյան Արթուր | D62: 173091952.2 | E62: 60 | F62: 24 | G62: 24 | H62: 8 | I62: 24 | U62: 2000 | V62: 13160
A63: 58 | B63: Ք.Չարենցավան 2-րդ թաղ. 48շ. | C63: Ա.Ձ. Մաթևոսյան Արթուր | D63: 173091952.2 | E63: 60 | F63: 24 | G63: 24 | H63: 8 | I63: 24 | U63: 2000 | V63: 13160
A64: 59 | B64: Ք.Չարենցավան 2-րդ թաղ. 48շ. | C64: Ա.Ձ. Մաթևոսյան Արթուր | D64: 173091952.2 | E64: 60 | F64: 24 | G64: 24 | H64: 8 | I64: 24 | U64: 2000 | V64: 13160
A65: 60 | B65: Ք.Չարենցավան 2-րդ թաղ. 48շ. | C65: Ա.Ձ. Մաթևոսյան Արթուր | D65: 173091952.2 | E65: 60 | F65: 24 | G65: 24 | H65: 8 | I65: 24 | U65: 2000 | V65: 13160
B69: Добры день всем, прошу помощи. у меня кажется не выполнимая задача дело в копировки ,нужен макрос который бы первый- из любого активного листа а они у нас 6 копировать С4 и вставлять в листе Фактура А3 ,второе - из активного листа активного строка (B,C,D) копировать и вставлять в листе Фактура (D9,D10,D11) Трети- нужно чтобы найти в активного строке первую непустую ячейку например тот желтую строку первый F14 это количество закупленного товара оно будет вставляется у нас в листе фактура Е18 а F3 будет вставляется в Фактуре А18, второе непустую это у нас H14 будет в фактуре Е19, а H3 будет в фактуре А19 и.т.л до последнего непустую

Sheet Граздан
B3: адресс | C3: имя фамиля | E3: лим-1,5 | F3: лим-0,5 | G3: тан-0,5 | H3: натур-сок 2 | I3: натур-сок 0.25 | J3: халодны кофе | K3: малоты кофе кг. | L3: малоты кофе Джови шт. | M3: малоты кофе Лидер шт. | N3: куруруз | O3: чипси 80 гр. | P3: чипси 200 гр. | Q3: Ади-Буди | R3: Соска | S3: Бочка | T3: Ведро
B4: Граздан | C4: Արսեն Կիրակոսյան | U4: скидка | V4: сумма
D5: ՀՎՀՀ | E5: 80 | F5: 60 | G5: 80 | H5: 500 | I5: 125
A6: 1 | B6: Ք.Հրազդան Միկրո 26շ. | C6: Ա.Ձ. Մաթևոսյան Արթուր | D6: 42256545 | E6: 8 | H6: 6 | I6: 10 | U6: 2000 | V6: =SUMPRODUCT($E$5:$T$5,E6:T6)-U6 -> 2890
A7: 2 | B7: Ք.Հրազդան Միկրո 38շ. | C7: Ա.Ձ. Մաթևոսյան Արմեն | D7: 35658975 | F7: 24 | H7: 80 | U7: 2000 | V7: =SUMPRODUCT($E$5:$T$5,E7:T7)-U7 -> 39440
A8: 3 | B8: Ք.Հրազդան Միկրո 40շ. | C8: Ա.Ձ. Սարգսյան Կարեն | D8: 25854565 | E8: 72 | F8: 48 | G8: 24 | H8: 8 | I8: 24 | U8: 2000 | V8: =SUMPRODUCT($E$5:$T$5,E8:T8)-U8 -> 15560
A9: 4 | B9: Ք.Հրազդան 4-Միկրո 2շ. | C9: Ա.Ձ. Կարապետյան Մարի | D9: 85456523 | F9: 24 | G9: 24 | H9: 8 | I9: 24 | U9: 2000 | V9: 8360
A10: 5 | B10: Ք.Հրազդան 4-Միկրո 20շ. | C10: Ա.Ձ. Մաթևոսյան Արթուր | D10: 77255533 | E10: 60 | H10: 16 | I10: 24 | U10: 2000 | V10: 13800
A11: 6 | B11: Ք.Հրազդան 4-Միկրո 30շ. | C11: Ա.Ձ. Մաթևոսյան Արթուր | D11: 89235085 | E11: 48 | F11: 24 | G11: 24 | H11: 8 | I11: 60 | U11: 2000 | V11: 16700
A12: 7 | B12: Ք.Հրազդան 4-Միկրո 36շ. | C12: abo | D12: 101214637.8 | E12: 50 | F12: 24 | G12: 24 | I12: 24 | U12: 2000 | V12: 8360
A13: 8 | B13: Ք.Հրազդան 4-Միկրո 45շ. | C13: kbo | D13: 113194190.2 | E13: 120 | F13: 24 | G13: 60 | H13: 8 | I13: 48 | U13: 2000 | V13: 23840
A14: 9 | B14: Ք.Հրազդան 2-Միկրո 16շ. | C14: mbo | D14: 125173742.6 | H14: 20 | I14: 70 | U14: 2000 | V14: 16750
A15: 10 | B15: Ք.Հրազդան 2-Միկրո 20շ. | C15: Ա.Ձ. Մաթևոսյան Արթուր | D15: 137153295 | E15: 72 | F15: 48 | G15: 24 | H15: 20 | I15: 24 | U15: 2000 | V15: 21560
A16: 11 | B16: Ք.Հրազդան 2-Միկրո 26շ. | C16: Ա.Ձ. Մաթևոսյան Արթուր | D16: 149132847.4 | E16: 60 | F16: 24 | G16: 120 | H16: 8 | I16: 60 | U16: 2000 | V16: 25340
A17: 12 | B17: Ք.Հրազդան 2-Միկրո 46շ. | C17: Ա.Ձ. Մաթևոսյան Արթուր | D17: 161112399.8 | E17: 48 | F17: 60 | G17: 24 | H17: 20 | I17: 24 | U17: 2000 | V17: 20360
A18: 13 | B18: Ք.Հրազդան 2-Միկրո 48շ. | C18: Ա.Ձ. Մաթևոսյան Արթուր | D18: 173091952.2 | E18: 60 | F18: 24 | G18: 24 | H18: 8 | I18: 24 | U18: 2000 | V18: 13160
A19: 14 | B19: Ք.Հրազդան 2-Միկրո 48շ. | C19: Ա.Ձ. Մաթևոսյան Արթուր | D19: 173091952.2 | E19: 60 | F19: 24 | G19: 24 | H19: 8 | I19: 24 | U19: 2000 | V19: 13160
A20: 15 | B20: Ք.Հրազդան 2-Միկրո 48շ. | C20: Ա.Ձ. Մաթևոսյան Արթուր | D20: 173091952.2 | E20: 60 | F20: 24 | G20: 24 | H20: 8 | I20: 24 | U20: 2000 | V20: 13160
A21: 16 | B21: Ք.Հրազդան 2-Միկրո 48շ. | C21: Ա.Ձ. Մաթևոսյան Արթուր | D21: 173091952.2 | E21: 60 | F21: 24 | G21: 24 | H21: 8 | I21: 24 | U21: 2000 | V21: 13160
A22: 17 | B22: Ք.Հրազդան 2-Միկրո 48շ. | C22: Ա.Ձ. Մաթևոսյան Արթուր | D22: 173091952.2 | E22: 60 | F22: 24 | G22: 24 | H22: 8 | I22: 24 | U22: 2000 | V22: 13160
A23: 18 | B23: Ք.Հրազդան 2-Միկրո 48շ. | C23: Ա.Ձ. Մաթևոսյան Արթուր | D23: 173091952.2 | E23: 60 | F23: 24 | G23: 24 | H23: 8 | I23: 24 | U23: 2000 | V23: 13160
A24: 19 | B24: Ք.Հրազդան 2-Միկրո 48շ. | C24: Ա.Ձ. Մաթևոսյան Արթուր | D24: 173091952.2 | E24: 60 | F24: 24 | G24: 24 | H24: 8 | I24: 24 | U24: 2000 | V24: 13160 | AC24: тан-0,5 | AD24: kbo | AE24: 120 | AF24: 10724
A25: 20 | B25: Ք.Հրազդան 2-Միկրո 48շ. | C25: Ա.Ձ. Մաթևոսյան Արթուր | D25: 173091952.2 | E25: 60 | F25: 24 | G25: 24 | H25: 8 | I25: 24 | U25: 2000 | V25: 13160
A26: 21 | B26: Ք.Հրազդան 2-Միկրո 48շ. | C26: Ա.Ձ. Մաթևոսյան Արթուր | D26: 173091952.2 | E26: 60 | F26: 24 | G26: 24 | H26: 8 | I26: 24 | U26: 2000 | V26: 13160
A27: 22 | B27: Ք.Հրազդան 2-Միկրո 48շ. | C27: Ա.Ձ. Մաթևոսյան Արթուր | D27: 173091952.2 | E27: 60 | F27: 24 | G27: 24 | H27: 8 | I27: 24 | U27: 2000 | V27: 13160
A28: 23 | B28: Ք.Հրազդան 2-Միկրո 48շ. | C28: Ա.Ձ. Մաթևոսյան Արթուր | D28: 173091952.2 | E28: 60 | F28: 24 | G28: 24 | H28: 8 | I28: 24 | U28: 2000 | V28: 13160
A29: 24 | B29: Ք.Հրազդան 2-Միկրո 48շ. | C29: Ա.Ձ. Մաթևոսյան Արթուր | D29: 173091952.2 | E29: 60 | F29: 24 | G29: 24 | H29: 8 | I29: 24 | U29: 2000 | V29: 13160
A30: 25 | B30: Ք.Հրազդան 2-Միկրո 48շ. | C30: Ա.Ձ. Մաթևոսյան Արթուր | D30: 173091952.2 | E30: 60 | F30: 24 | G30: 24 | H30: 8 | I30: 24 | U30: 2000 | V30: 13160
A31: 26 | B31: Ք.Հրազդան 2-Միկրո 48շ. | C31: Ա.Ձ. Մաթևոսյան Արթուր | D31: 173091952.2 | E31: 60 | F31: 24 | G31: 24 | H31: 8 | I31: 24 | U31: 2000 | V31: 13160
A32: 27 | B32: Ք.Հրազդան 2-Միկրո 48շ. | C32: Ա.Ձ. Մաթևոսյան Արթուր | D32: 173091952.2 | E32: 60 | F32: 24 | G32: 24 | H32: 8 | I32: 24 | U32: 2000 | V32: 13160
A33: 28 | B33: Ք.Հրազդան 2-Միկրո 48շ. | C33: Ա.Ձ. Մաթևոսյան Արթուր | D33: 173091952.2 | E33: 60 | F33: 24 | G33: 24 | H33: 8 | I33: 24 | U33: 2000 | V33: 13160
A34: 29 | B34: Ք.Հրազդան 2-Միկրո 48շ. | C34: Ա.Ձ. Մաթևոսյան Արթուր | D34: 173091952.2 | E34: 60 | F34: 24 | G34: 24 | H34: 8 | I34: 24 | U34: 2000 | V34: 13160
A35: 30 | B35: Ք.Հրազդան 2-Միկրո 48շ. | C35: Ա.Ձ. Մաթևոսյան Արթուր | D35: 173091952.2 | E35: 60 | F35: 24 | G35: 24 | H35: 8 | I35: 24 | U35: 2000 | V35: 13160
A36: 31 | B36: Ք.Հրազդան 2-Միկրո 48շ. | C36: Ա.Ձ. Մաթևոսյան Արթուր | D36: 173091952.2 | E36: 60 | F36: 24 | G36: 24 | H36: 8 | I36: 24 | U36: 2000 | V36: 13160
A37: 32 | B37: Ք.Հրազդան 2-Միկրո 48շ. | C37: Ա.Ձ. Մաթևոսյան Արթուր | D37: 173091952.2 | E37: 60 | F37: 24 | G37: 24 | H37: 8 | I37: 24 | U37: 2000 | V37: 13160
A38: 33 | B38: Ք.Հրազդան 2-Միկրո 48շ. | C38: Ա.Ձ. Մաթևոսյան Արթուր | D38: 173091952.2 | E38: 60 | F38: 24 | G38: 24 | H38: 8 | I38: 24 | U38: 2000 | V38: 13160
A39: 34 | B39: Ք.Հրազդան 2-Միկրո 48շ. | C39: Ա.Ձ. Մաթևոսյան Արթուր | D39: 173091952.2 | E39: 60 | F39: 24 | G39: 24 | H39: 8 | I39: 24 | U39: 2000 | V39: 13160
A40: 35 | B40: Ք.Հրազդան 2-Միկրո 48շ. | C40: Ա.Ձ. Մաթևոսյան Արթուր | D40: 173091952.2 | E40: 60 | F40: 24 | G40: 24 | H40: 8 | I40: 24 | U40: 2000 | V40: 13160
A41: 36 | B41: Ք.Հրազդան 2-Միկրո 48շ. | C41: Ա.Ձ. Մաթևոսյան Արթուր | D41: 173091952.2 | E41: 60 | F41: 24 | G41: 24 | H41: 8 | I41: 24 | U41: 2000 | V41: 13160
A42: 37 | B42: Ք.Հրազդան 2-Միկրո 48շ. | C42: Ա.Ձ. Մաթևոսյան Արթուր | D42: 173091952.2 | E42: 60 | F42: 24 | G42: 24 | H42: 8 | I42: 24 | U42: 2000 | V42: 13160
A43: 38 | B43: Ք.Հրազդան 2-Միկրո 48շ. | C43: Ա.Ձ. Մաթևոսյան Արթուր | D43: 173091952.2 | E43: 60 | F43: 24 | G43: 24 | H43: 8 | I43: 24 | U43: 2000 | V43: 13160
A44: 39 | B44: Ք.Հրազդան 2-Միկրո 48շ. | C44: Ա.Ձ. Մաթևոսյան Արթուր | D44: 173091952.2 | E44: 60 | F44: 24 | G44: 24 | H44: 8 | I44: 24 | U44: 2000 | V44: 13160
A45: 40 | B45: Ք.Հրազդան 2-Միկրո 48շ. | C45: Ա.Ձ. Մաթևոսյան Արթուր | D45: 173091952.2 | E45: 60 | F45: 24 | G45: 24 | H45: 8 | I45: 24 | U45: 2000 | V45: 13160
A46: 41 | B46: Ք.Հրազդան 2-Միկրո 48շ. | C46: Ա.Ձ. Մաթևոսյան Արթուր | D46: 173091952.2 | E46: 60 | F46: 24 | G46: 24 | H46: 8 | I46: 24 | U46: 2000 | V46: 13160
A47: 42 | B47: Ք.Հրազդան 2-Միկրո 48շ. | C47: Ա.Ձ. Մաթևոսյան Արթուր | D47: 173091952.2 | E47: 60 | F47: 24 | G47: 24 | H47: 8 | I47: 24 | U47: 2000 | V47: 13160
A48: 43 | B48: Ք.Հրազդան 2-Միկրո 48շ. | C48: Ա.Ձ. Մաթևոսյան Արթուր | D48: 173091952.2 | E48: 60 | F48: 24 | G48: 24 | H48: 8 | I48: 24 | U48: 2000 | V48: 13160
A49: 44 | B49: Ք.Հրազդան 2-Միկրո 48շ. | C49: Ա.Ձ. Մաթևոսյան Արթուր | D49: 173091952.2 | E49: 60 | F49: 24 | G49: 24 | H49: 8 | I49: 24 | U49: 2000 | V49: 13160
A50: 45 | B50: Ք.Հրազդան 2-Միկրո 48շ. | C50: Ա.Ձ. Մաթևոսյան Արթուր | D50: 173091952.2 | E50: 60 | F50: 24 | G50: 24 | H50: 8 | I50: 24 | U50: 2000 | V50: 13160
A51: 46 | B51: Ք.Հրազդան 2-Միկրո 48շ. | C51: Ա.Ձ. Մաթևոսյան Արթուր | D51: 173091952.2 | E51: 60 | F51: 24 | G51: 24 | H51: 8 | I51: 24 | U51: 2000 | V51: 13160
A52: 47 | B52: Ք.Հրազդան 2-Միկրո 48շ. | C52: Ա.Ձ. Մաթևոսյան Արթուր | D52: 173091952.2 | E52: 60 | F52: 24 | G52: 24 | H52: 8 | I52: 24 | U52: 2000 | V52: 13160
A53: 48 | B53: Ք.Հրազդան 2-Միկրո 48շ. | C53: Ա.Ձ. Մաթևոսյան Արթուր | D53: 173091952.2 | E53: 60 | F53: 24 | G53: 24 | H53: 8 | I53: 24 | U53: 2000 | V53: 13160
A54: 49 | B54: Ք.Հրազդան 2-Միկրո 48շ. | C54: Ա.Ձ. Մաթևոսյան Արթուր | D54: 173091952.2 | E54: 60 | F54: 24 | G54: 24 | H54: 8 | I54: 24 | U54: 2000 | V54: 13160
A55: 50 | B55: Ք.Հրազդան 2-Միկրո 48շ. | C55: Ա.Ձ. Մաթևոսյան Արթուր | D55: 173091952.2 | E55: 60 | F55: 24 | G55: 24 | H55: 8 | I55: 24 | U55: 2000 | V55: 13160
A56: 51 | B56: Ք.Հրազդան 2-Միկրո 48շ. | C56: Ա.Ձ. Մաթևոսյան Արթուր | D56: 173091952.2 | E56: 60 | F56: 24 | G56: 24 | H56: 8 | I56: 24 | U56: 2000 | V56: 13160
A57: 52 | B57: Ք.Հրազդան 2-Միկրո 48շ. | C57: Ա.Ձ. Մաթևոսյան Արթուր | D57: 173091952.2 | E57: 60 | F57: 24 | G57: 24 | H57: 8 | I57: 24 | U57: 2000 | V57: 13160
A58: 53 | B58: Ք.Հրազդան 2-Միկրո 48շ. | C58: Ա.Ձ. Մաթևոսյան Արթուր | D58: 173091952.2 | E58: 60 | F58: 24 | G58: 24 | H58: 8 | I58: 24 | U58: 2000 | V58: 13160
A59: 54 | B59: Ք.Հրազդան 2-Միկրո 48շ. | C59: Ա.Ձ. Մաթևոսյան Արթուր | D59: 173091952.2 | E59: 60 | F59: 24 | G59: 24 | H59: 8 | I59: 24 | U59: 2000 | V59: 13160
A60: 55 | B60: Ք.Հրազդան 2-Միկրո 48շ. | C60: Ա.Ձ. Մաթևոսյան Արթուր | D60: 173091952.2 | E60: 60 | F60: 24 | G60: 24 | H60: 8 | I60: 24 | U60: 2000 | V60: 13160
A61: 56 | B61: Ք.Հրազդան 2-Միկրո 48շ. | C61: Ա.Ձ. Մաթևոսյան Արթուր | D61: 173091952.2 | E61: 60 | F61: 24 | G61: 24 | H61: 8 | I61: 24 | U61: 2000 | V61: 13160
A62: 57 | B62: Ք.Հրազդան 2-Միկրո 48շ. | C62: Ա.Ձ. Մաթևոսյան Արթուր | D62: 173091952.2 | E62: 60 | F62: 24 | G62: 24 | H62: 8 | I62: 24 | U62: 2000 | V62: =SUMPRODUCT($E$5:$T$5,E62:T62)-U62 -> 13160
A63: 58 | B63: Ք.Հրազդան 2-Միկրո 48շ. | C63: Ա.Ձ. Մաթևոսյան Արթուր | D63: 173091952.2 | E63: 60 | F63: 24 | G63: 24 | H63: 8 | I63: 24 | U63: 2000 | V63: 13160
A64: 59 | B64: Ք.Հրազդան 2-Միկրո 48շ. | C64: Ա.Ձ. Մաթևոսյան Արթուր | D64: 173091952.2 | E64: 60 | F64: 24 | G64: 24 | H64: 8 | I64: 24 | U64: 2000 | V64: 13160
A65: 60 | B65: Ք.Հրազդան 2-Միկրո 48շ. | C65: Ա.Ձ. Մաթևոսյան Արթուր | D65: 173091952.2 | E65: 60 | F65: 24 | G65: 24 | H65: 8 | I65: 24 | U65: 2000 | V65: 13160

Sheet Абовян
B3: адресс | C3: имя фамиля | E3: лим-1,5 | F3: лим-0,5 | G3: тан-0,5 | H3: натур-сок 2 | I3: натур-сок 0.25 | J3: халодны кофе | K3: малоты кофе кг. | L3: малоты кофе Джови шт. | M3: малоты кофе Лидер шт. | N3: куруруз | O3: чипси 80 гр. | P3: чипси 200 гр. | Q3: Ади-Буди | R3: Соска | S3: Бочка | T3: Ведро
B4: Абовян | C4: Արսեն Կիրակոսյան | U4: скидка | V4: сумма
D5: ՀՎՀՀ | E5: 80 | F5: 60 | G5: 80 | H5: 500 | I5: 125
A6: 1 | B6: Ք.Աբովյան Միկրո 26շ. | C6: Ա.Ձ. Մաթևոսյան Արթուր | D6: 42256545 | E6: 8 | H6: 6 | I6: 10 | U6: 2000 | V6: =SUMPRODUCT($E$5:$T$5,E6:T6)-U6 -> 2890
A7: 2 | B7: Ք.Աբովյան Միկրո 38շ. | C7: Ա.Ձ. Մաթևոսյան Արմեն | D7: 35658975 | F7: 24 | U7: 2000 | V7: =SUMPRODUCT($E$5:$T$5,E7:T7)-U7 -> -560
A8: 3 | B8: Ք.Աբովյան Միկրո 40շ. | C8: Ա.Ձ. Սարգսյան Կարեն | D8: 25854565 | E8: 72 | F8: 48 | G8: 24 | H8: 8 | I8: 24 | U8: 2000 | V8: 15560
A9: 4 | B9: Ք.Աբովյան 4-Միկրո 2շ. | C9: Ա.Ձ. Կարապետյան Մարի | D9: 85456523 | F9: 24 | G9: 24 | H9: 8 | I9: 24 | U9: 2000 | V9: 8360
A10: 5 | B10: Ք.Աբովյան 4-Միկրո 20շ. | C10: Ա.Ձ. Մաթևոսյան Արթուր | D10: 77255533 | E10: 60 | H10: 16 | I10: 24 | U10: 2000 | V10: 13800
A11: 6 | B11: Ք.Աբովյան 4-Միկրո 30շ. | C11: Ա.Ձ. Մաթևոսյան Արթուր | D11: 89235085 | E11: 48 | F11: 24 | G11: 24 | H11: 8 | I11: 60 | U11: 2000 | V11: 16700
A12: 7 | B12: Ք.Աբովյան 4-Միկրո 36շ. | C12: abo | D12: 101214637.8 | E12: 50 | F12: 24 | G12: 24 | I12: 24 | U12: 2000 | V12: 8360
A13: 8 | B13: Ք.Աբովյան 4-Միկրո 45շ. | C13: kbo | D13: 113194190.2 | E13: 120 | F13: 24 | G13: 60 | H13: 8 | I13: 48 | U13: 2000 | V13: 23840
A14: 9 | B14: Ք.Աբովյան 2-Միկրո 16շ. | C14: mbo | D14: 125173742.6 | H14: 20 | I14: 70 | U14: 2000 | V14: 16750
A15: 10 | B15: Ք.Աբովյան 2-Միկրո 20շ. | C15: Ա.Ձ. Մաթևոսյան Արթուր | D15: 137153295 | E15: 72 | F15: 48 | G15: 24 | H15: 20 | I15: 24 | U15: 2000 | V15: 21560
A16: 11 | B16: Ք.Աբովյան 2-Միկրո 26շ. | C16: Ա.Ձ. Մաթևոսյան Արթուր | D16: 149132847.4 | E16: 60 | F16: 24 | G16: 120 | H16: 8 | I16: 60 | U16: 2000 | V16: 25340
A17: 12 | B17: Ք.Աբովյան 2-Միկրո 46շ. | C17: Ա.Ձ. Մաթևոսյան Արթուր | D17: 161112399.8 | E17: 48 | F17: 60 | G17: 24 | H17: 20 | I17: 24 | U17: 2000 | V17: 20360
A18: 13 | B18: Ք.Աբովյան 2-Միկրո 48շ. | C18: Ա.Ձ. Մաթևոսյան Արթուր | D18: 173091952.2 | E18: 60 | F18: 24 | G18: 24 | H18: 8 | I18: 24 | U18: 2000 | V18: 13160
A19: 14 | B19: Ք.Աբովյան 2-Միկրո 48շ. | C19: Ա.Ձ. Մաթևոսյան Արթուր | D19: 173091952.2 | E19: 60 | F19: 24 | G19: 24 | H19: 8 | I19: 24 | U19: 2000 | V19: 13160
A20: 15 | B20: Ք.Աբովյան 2-Միկրո 48շ. | C20: Ա.Ձ. Մաթևոսյան Արթուր | D20: 173091952.2 | E20: 60 | F20: 24 | G20: 24 | H20: 8 | I20: 24 | U20: 2000 | V20: 13160
A21: 16 | B21: Ք.Աբովյան 2-Միկրո 48շ. | C21: Ա.Ձ. Մաթևոսյան Արթուր | D21: 173091952.2 | E21: 60 | F21: 24 | G21: 24 | H21: 8 | I21: 24 | U21: 2000 | V21: 13160
A22: 17 | B22: Ք.Աբովյան 2-Միկրո 48շ. | C22: Ա.Ձ. Մաթևոսյան Արթուր | D22: 173091952.2 | E22: 60 | F22: 24 | G22: 24 | H22: 8 | I22: 24 | U22: 2000 | V22: 13160
A23: 18 | B23: Ք.Աբովյան 2-Միկրո 48շ. | C23: Ա.Ձ. Մաթևոսյան Արթուր | D23: 173091952.2 | E23: 60 | F23: 24 | G23: 24 | H23: 8 | I23: 24 | U23: 2000 | V23: 13160
A24: 19 | B24: Ք.Աբովյան 2-Միկրո 48շ. | C24: Ա.Ձ. Մաթևոսյան Արթուր | D24: 173091952.2 | E24: 60 | F24: 24 | G24: 24 | H24: 8 | I24: 24 | U24: 2000 | V24: 13160 | AC24: тан-0,5 | AD24: kbo | AE24: 120 | AF24: 10724
A25: 20 | B25: Ք.Աբովյան 2-Միկրո 48շ. | C25: Ա.Ձ. Մաթևոսյան Արթուր | D25: 173091952.2 | E25: 60 | F25: 24 | G25: 24 | H25: 8 | I25: 24 | U25: 2000 | V25: 13160
A26: 21 | B26: Ք.Աբովյան 2-Միկրո 48շ. | C26: Ա.Ձ. Մաթևոսյան Արթուր | D26: 173091952.2 | E26: 60 | F26: 24 | G26: 24 | H26: 8 | I26: 24 | U26: 2000 | V26: 13160
A27: 22 | B27: Ք.Աբովյան 2-Միկրո 48շ. | C27: Ա.Ձ. Մաթևոսյան Արթուր | D27: 173091952.2 | E27: 60 | F27: 24 | G27: 24 | H27: 8 | I27: 24 | U27: 2000 | V27: 13160
A28: 23 | B28: Ք.Աբովյան 2-Միկրո 48շ. | C28: Ա.Ձ. Մաթևոսյան Արթուր | D28: 173091952.2 | E28: 60 | F28: 24 | G28: 24 | H28: 8 | I28: 24 | U28: 2000 | V28: 13160
A29: 24 | B29: Ք.Աբովյան 2-Միկրո 48շ. | C29: Ա.Ձ. Մաթևոսյան Արթուր | D29: 173091952.2 | E29: 60 | F29: 24 | G29: 24 | H29: 8 | I29: 24 | U29: 2000 | V29: 13160
A30: 25 | B30: Ք.Աբովյան 2-Միկրո 48շ. | C30: Ա.Ձ. Մաթևոսյան Արթուր | D30: 173091952.2 | E30: 60 | F30: 24 | G30: 24 | H30: 8 | I30: 24 | U30: 2000 | V30: 13160
A31: 26 | B31: Ք.Աբովյան 2-Միկրո 48շ. | C31: Ա.Ձ. Մաթևոսյան Արթուր | D31: 173091952.2 | E31: 60 | F31: 24 | G31: 24 | H31: 8 | I31: 24 | U31: 2000 | V31: 13160
A32: 27 | B32: Ք.Աբովյան 2-Միկրո 48շ. | C32: Ա.Ձ. Մաթևոսյան Արթուր | D32: 173091952.2 | E32: 60 | F32: 24 | G32: 24 | H32: 8 | I32: 24 | U32: 2000 | V32: 13160
A33: 28 | B33: Ք.Աբովյան 2-Միկրո 48շ. | C33: Ա.Ձ. Մաթևոսյան Արթուր | D33: 173091952.2 | E33: 60 | F33: 24 | G33: 24 | H33: 8 | I33: 24 | U33: 2000 | V33: 13160
A34: 29 | B34: Ք.Աբովյան 2-Միկրո 48շ. | C34: Ա.Ձ. Մաթևոսյան Արթուր | D34: 173091952.2 | E34: 60 | F34: 24 | G34: 24 | H34: 8 | I34: 24 | U34: 2000 | V34: 13160
A35: 30 | B35: Ք.Աբովյան 2-Միկրո 48շ. | C35: Ա.Ձ. Մաթևոսյան Արթուր | D35: 173091952.2 | E35: 60 | F35: 24 | G35: 24 | H35: 8 | I35: 24 | U35: 2000 | V35: 13160
A36: 31 | B36: Ք.Աբովյան 2-Միկրո 48շ. | C36: Ա.Ձ. Մաթևոսյան Արթուր | D36: 173091952.2 | E36: 60 | F36: 24 | G36: 24 | H36: 8 | I36: 24 | U36: 2000 | V36: 13160
A37: 32 | B37: Ք.Աբովյան 2-Միկրո 48շ. | C37: Ա.Ձ. Մաթևոսյան Արթուր | D37: 173091952.2 | E37: 60 | F37: 24 | G37: 24 | H37: 8 | I37: 24 | U37: 2000 | V37: 13160
A38: 33 | B38: Ք.Աբովյան 2-Միկրո 48շ. | C38: Ա.Ձ. Մաթևոսյան Արթուր | D38: 173091952.2 | E38: 60 | F38: 24 | G38: 24 | H38: 8 | I38: 24 | U38: 2000 | V38: 13160
A39: 34 | B39: Ք.Աբովյան 2-Միկրո 48շ. | C39: Ա.Ձ. Մաթևոսյան Արթուր | D39: 173091952.2 | E39: 60 | F39: 24 | G39: 24 | H39: 8 | I39: 24 | U39: 2000 | V39: 13160
A40: 35 | B40: Ք.Աբովյան 2-Միկրո 48շ. | C40: Ա.Ձ. Մաթևոսյան Արթուր | D40: 173091952.2 | E40: 60 | F40: 24 | G40: 24 | H40: 8 | I40: 24 | U40: 2000 | V40: 13160
A41: 36 | B41: Ք.Աբովյան 2-Միկրո 48շ. | C41: Ա.Ձ. Մաթևոսյան Արթուր | D41: 173091952.2 | E41: 60 | F41: 24 | G41: 24 | H41: 8 | I41: 24 | U41: 2000 | V41: 13160
A42: 37 | B42: Ք.Աբովյան 2-Միկրո 48շ. | C42: Ա.Ձ. Մաթևոսյան Արթուր | D42: 173091952.2 | E42: 60 | F42: 24 | G42: 24 | H42: 8 | I42: 24 | U42: 2000 | V42: 13160
A43: 38 | B43: Ք.Աբովյան 2-Միկրո 48շ. | C43: Ա.Ձ. Մաթևոսյան Արթուր | D43: 173091952.2 | E43: 60 | F43: 24 | G43: 24 | H43: 8 | I43: 24 | U43: 2000 | V43: 13160
A44: 39 | B44: Ք.Աբովյան 2-Միկրո 48շ. | C44: Ա.Ձ. Մաթևոսյան Արթուր | D44: 173091952.2 | E44: 60 | F44: 24 | G44: 24 | H44: 8 | I44: 24 | U44: 2000 | V44: 13160
A45: 40 | B45: Ք.Աբովյան 2-Միկրո 48շ. | C45: Ա.Ձ. Մաթևոսյան Արթուր | D45: 173091952.2 | E45: 60 | F45: 24 | G45: 24 | H45: 8 | I45: 24 | U45: 2000 | V45: 13160
A46: 41 | B46: Ք.Աբովյան 2-Միկրո 48շ. | C46: Ա.Ձ. Մաթևոսյան Արթուր | D46: 173091952.2 | E46: 60 | F46: 24 | G46: 24 | H46: 8 | I46: 24 | U46: 2000 | V46: 13160
A47: 42 | B47: Ք.Աբովյան 2-Միկրո 48շ. | C47: Ա.Ձ. Մաթևոսյան Արթուր | D47: 173091952.2 | E47: 60 | F47: 24 | G47: 24 | H47: 8 | I47: 24 | U47: 2000 | V47: 13160
A48: 43 | B48: Ք.Աբովյան 2-Միկրո 48շ. | C48: Ա.Ձ. Մաթևոսյան Արթուր | D48: 173091952.2 | E48: 60 | F48: 24 | G48: 24 | H48: 8 | I48: 24 | U48: 2000 | V48: 13160
A49: 44 | B49: Ք.Աբովյան 2-Միկրո 48շ. | C49: Ա.Ձ. Մաթևոսյան Արթուր | D49: 173091952.2 | E49: 60 | F49: 24 | G49: 24 | H49: 8 | I49: 24 | U49: 2000 | V49: 13160
A50: 45 | B50: Ք.Աբովյան 2-Միկրո 48շ. | C50: Ա.Ձ. Մաթևոսյան Արթուր | D50: 173091952.2 | E50: 60 | F50: 24 | G50: 24 | H50: 8 | I50: 24 | U50: 2000 | V50: 13160
A51: 46 | B51: Ք.Աբովյան 2-Միկրո 48շ. | C51: Ա.Ձ. Մաթևոսյան Արթուր | D51: 173091952.2 | E51: 60 | F51: 24 | G51: 24 | H51: 8 | I51: 24 | U51: 2000 | V51: 13160
A52: 47 | B52: Ք.Աբովյան 2-Միկրո 48շ. | C52: Ա.Ձ. Մաթևոսյան Արթուր | D52: 173091952.2 | E52: 60 | F52: 24 | G52: 24 | H52: 8 | I52: 24 | U52: 2000 | V52: 13160
A53: 48 | B53: Ք.Աբովյան 2-Միկրո 48շ. | C53: Ա.Ձ. Մաթևոսյան Արթուր | D53: 173091952.2 | E53: 60 | F53: 24 | G53: 24 | H53: 8 | I53: 24 | U53: 2000 | V53: 13160
A54: 49 | B54: Ք.Աբովյան 2-Միկրո 48շ. | C54: Ա.Ձ. Մաթևոսյան Արթուր | D54: 173091952.2 | E54: 60 | F54: 24 | G54: 24 | H54: 8 | I54: 24 | U54: 2000 | V54: 13160
A55: 50 | B55: Ք.Աբովյան 2-Միկրո 48շ. | C55: Ա.Ձ. Մաթևոսյան Արթուր | D55: 173091952.2 | E55: 60 | F55: 24 | G55: 24 | H55: 8 | I55: 24 | U55: 2000 | V55: 13160
A56: 51 | B56: Ք.Աբովյան 2-Միկրո 48շ. | C56: Ա.Ձ. Մաթևոսյան Արթուր | D56: 173091952.2 | E56: 60 | F56: 24 | G56: 24 | H56: 8 | I56: 24 | U56: 2000 | V56: 13160
A57: 52 | B57: Ք.Աբովյան 2-Միկրո 48շ. | C57: Ա.Ձ. Մաթևոսյան Արթուր | D57: 173091952.2 | E57: 60 | F57: 24 | G57: 24 | H57: 8 | I57: 24 | U57: 2000 | V57: 13160
A58: 53 | B58: Ք.Աբովյան 2-Միկրո 48շ. | C58: Ա.Ձ. Մաթևոսյան Արթուր | D58: 173091952.2 | E58: 60 | F58: 24 | G58: 24 | H58: 8 | I58: 24 | U58: 2000 | V58: 13160
A59: 54 | B59: Ք.Աբովյան 2-Միկրո 48շ. | C59: Ա.Ձ. Մաթևոսյան Արթուր | D59: 173091952.2 | E59: 60 | F59: 24 | G59: 24 | H59: 8 | I59: 24 | U59: 2000 | V59: 13160
A60: 55 | B60: Ք.Աբովյան 2-Միկրո 48շ. | C60: Ա.Ձ. Մաթևոսյան Արթուր | D60: 173091952.2 | E60: 60 | F60: 24 | G60: 24 | H60: 8 | I60: 24 | U60: 2000 | V60: 13160
A61: 56 | B61: Ք.Աբովյան 2-Միկրո 48շ. | C61: Ա.Ձ. Մաթևոսյան Արթուր | D61: 173091952.2 | E61: 60 | F61: 24 | G61: 24 | H61: 8 | I61: 24 | U61: 2000 | V61: 13160
A62: 57 | B62: Ք.Աբովյան 2-Միկրո 48շ. | C62: Ա.Ձ. Մաթևոսյան Արթուր | D62: 173091952.2 | E62: 60 | F62: 24 | G62: 24 | H62: 8 | I62: 24 | U62: 2000 | V62: 13160
A63: 58 | B63: Ք.Աբովյան 2-Միկրո 48շ. | C63: Ա.Ձ. Մաթևոսյան Արթուր | D63: 173091952.2 | E63: 60 | F63: 24 | G63: 24 | H63: 8 | I63: 24 | U63: 2000 | V63: 13160
A64: 59 | B64: Ք.Աբովյան 2-Միկրո 48շ. | C64: Ա.Ձ. Մաթևոսյան Արթուր | D64: 173091952.2 | E64: 60 | F64: 24 | G64: 24 | H64: 8 | I64: 24 | U64: 2000 | V64: 13160
A65: 60 | B65: Ք.Աբովյան 2-Միկրո 48շ. | C65: Ա.Ձ. Մաթևոսյան Արթուր | D65: 173091952.2 | E65: 60 | F65: 24 | G65: 24 | H65: 8 | I65: 24 | U65: 2000 | V65: 13160

Sheet Севан
B3: адресс | C3: имя фамиля | E3: лим-1,5 | F3: лим-0,5 | G3: тан-0,5 | H3: натур-сок 2 | I3: натур-сок 0.25 | J3: халодны кофе | K3: малоты кофе кг. | L3: малоты кофе Джови шт. | M3: малоты кофе Лидер шт. | N3: куруруз | O3: чипси 80 гр. | P3: чипси 200 гр. | Q3: Ади-Буди | R3: Соска | S3: Бочка | T3: Ведро
B4: Севан | C4: Արսեն Կիրակոսյան | U4: скидка | V4: сумма
D5: ՀՎՀՀ | E5: 80 | F5: 60 | G5: 80 | H5: 500 | I5: 125
A6: 1 | B6: Ք.Սևան Միկրո 26շ. | C6: Ա.Ձ. Մաթևոսյան Արթուր | D6: 42256545 | E6: 8 | H6: 6 | I6: 10 | U6: 2000 | V6: =SUMPRODUCT($E$5:$T$5,E6:T6)-U6 -> 2890
A7: 2 | B7: Ք.Սևան Միկրո 38շ. | C7: Ա.Ձ. Մաթևոսյան Արմեն | D7: 35658975 | F7: 24 | U7: 2000 | V7: =SUMPRODUCT($E$5:$T$5,E7:T7)-U7 -> -560
A8: 3 | B8: Ք.Սևան Միկրո 40շ. | C8: Ա.Ձ. Սարգսյան Կարեն | D8: 25854565 | E8: 72 | F8: 48 | G8: 24 | H8: 8 | I8: 24 | U8: 2000 | V8: 15560
A9: 4 | B9: Ք.Սևան 4-Միկրո 2շ. | C9: Ա.Ձ. Կարապետյան Մարի | D9: 85456523 | F9: 24 | G9: 24 | H9: 8 | I9: 24 | U9: 2000 | V9: 8360
A10: 5 | B10: Ք.Սևան 4-Միկրո 20շ. | C10: Ա.Ձ. Մաթևոսյան Արթուր | D10: 77255533 | E10: 60 | H10: 16 | I10: 24 | U10: 2000 | V10: 13800
A11: 6 | B11: Ք.Սևան 4-Միկրո 30շ. | C11: Ա.Ձ. Մաթևոսյան Արթուր | D11: 89235085 | E11: 48 | F11: 24 | G11: 24 | H11: 8 | I11: 60 | U11: 2000 | V11: 16700
A12: 7 | B12: Ք.Սևան 4-Միկրո 36շ. | C12: abo | D12: 101214637.8 | E12: 50 | F12: 24 | G12: 24 | I12: 24 | U12: 2000 | V12: 8360
A13: 8 | B13: Ք.Սևան 4-Միկրո 45շ. | C13: kbo | D13: 113194190.2 | E13: 120 | F13: 24 | G13: 60 | H13: 8 | I13: 48 | U13: 2000 | V13: 23840
A14: 9 | B14: Ք.Սևան 2-Միկրո 16շ. | C14: mbo | D14: 125173742.6 | H14: 20 | I14: 70 | U14: 2000 | V14: 16750
A15: 10 | B15: Ք.Սևան 2-Միկրո 20շ. | C15: Ա.Ձ. Մաթևոսյան Արթուր | D15: 137153295 | E15: 72 | F15: 48 | G15: 24 | H15: 20 | I15: 24 | U15: 2000 | V15: 21560
A16: 11 | B16: Ք.Սևան 2-Միկրո 26շ. | C16: Ա.Ձ. Մաթևոսյան Արթուր | D16: 149132847.4 | E16: 60 | F16: 24 | G16: 120 | H16: 8 | I16: 60 | U16: 2000 | V16: 25340
A17: 12 | B17: Ք.Սևան 2-Միկրո 46շ. | C17: Ա.Ձ. Մաթևոսյան Արթուր | D17: 161112399.8 | E17: 48 | F17: 60 | G17: 24 | H17: 20 | I17: 24 | U17: 2000 | V17: 20360
A18: 13 | B18: Ք.Սևան 2-Միկրո 48շ. | C18: Ա.Ձ. Մաթևոսյան Արթուր | D18: 173091952.2 | E18: 60 | F18: 24 | G18: 24 | H18: 8 | I18: 24 | U18: 2000 | V18: 13160
A19: 14 | B19: Ք.Սևան 2-Միկրո 48շ. | C19: Ա.Ձ. Մաթևոսյան Արթուր | D19: 173091952.2 | E19: 60 | F19: 24 | G19: 24 | H19: 8 | I19: 24 | U19: 2000 | V19: 13160
A20: 15 | B20: Ք.Սևան 2-Միկրո 48շ. | C20: Ա.Ձ. Մաթևոսյան Արթուր | D20: 173091952.2 | E20: 60 | F20: 24 | G20: 24 | H20: 8 | I20: 24 | U20: 2000 | V20: 13160
A21: 16 | B21: Ք.Սևան 2-Միկրո 48շ. | C21: Ա.Ձ. Մաթևոսյան Արթուր | D21: 173091952.2 | E21: 60 | F21: 24 | G21: 24 | H21: 8 | I21: 24 | U21: 2000 | V21: 13160
A22: 17 | B22: Ք.Սևան 2-Միկրո 48շ. | C22: Ա.Ձ. Մաթևոսյան Արթուր | D22: 173091952.2 | E22: 60 | F22: 24 | G22: 24 | H22: 8 | I22: 24 | U22: 2000 | V22: 13160
A23: 18 | B23: Ք.Սևան 2-Միկրո 48շ. | C23: Ա.Ձ. Մաթևոսյան Արթուր | D23: 173091952.2 | E23: 60 | F23: 24 | G23: 24 | H23: 8 | I23: 24 | U23: 2000 | V23: 13160
A24: 19 | B24: Ք.Սևան 2-Միկրո 48շ. | C24: Ա.Ձ. Մաթևոսյան Արթուր | D24: 173091952.2 | E24: 60 | F24: 24 | G24: 24 | H24: 8 | I24: 24 | U24: 2000 | V24: 13160 | AC24: тан-0,5 | AD24: kbo | AE24: 120 | AF24: 10724
A25: 20 | B25: Ք.Սևան 2-Միկրո 48շ. | C25: Ա.Ձ. Մաթևոսյան Արթուր | D25: 173091952.2 | E25: 60 | F25: 24 | G25: 24 | H25: 8 | I25: 24 | U25: 2000 | V25: 13160
A26: 21 | B26: Ք.Սևան 2-Միկրո 48շ. | C26: Ա.Ձ. Մաթևոսյան Արթուր | D26: 173091952.2 | E26: 60 | F26: 24 | G26: 24 | H26: 8 | I26: 24 | U26: 2000 | V26: 13160
A27: 22 | B27: Ք.Սևան 2-Միկրո 48շ. | C27: Ա.Ձ. Մաթևոսյան Արթուր | D27: 173091952.2 | E27: 60 | F27: 24 | G27: 24 | H27: 8 | I27: 24 | U27: 2000 | V27: 13160
A28: 23 | B28: Ք.Սևան 2-Միկրո 48շ. | C28: Ա.Ձ. Մաթևոսյան Արթուր | D28: 173091952.2 | E28: 60 | F28: 24 | G28: 24 | H28: 8 | I28: 24 | U28: 2000 | V28: 13160
A29: 24 | B29: Ք.Սևան 2-Միկրո 48շ. | C29: Ա.Ձ. Մաթևոսյան Արթուր | D29: 173091952.2 | E29: 60 | F29: 24 | G29: 24 | H29: 8 | I29: 24 | U29: 2000 | V29: 13160
A30: 25 | B30: Ք.Սևան 2-Միկրո 48շ. | C30: Ա.Ձ. Մաթևոսյան Արթուր | D30: 173091952.2 | E30: 60 | F30: 24 | G30: 24 | H30: 8 | I30: 24 | U30: 2000 | V30: 13160
A31: 26 | B31: Ք.Սևան 2-Միկրո 48շ. | C31: Ա.Ձ. Մաթևոսյան Արթուր | D31: 173091952.2 | E31: 60 | F31: 24 | G31: 24 | H31: 8 | I31: 24 | U31: 2000 | V31: 13160
A32: 27 | B32: Ք.Սևան 2-Միկրո 48շ. | C32: Ա.Ձ. Մաթևոսյան Արթուր | D32: 173091952.2 | E32: 60 | F32: 24 | G32: 24 | H32: 8 | I32: 24 | U32: 2000 | V32: 13160
A33: 28 | B33: Ք.Սևան 2-Միկրո 48շ. | C33: Ա.Ձ. Մաթևոսյան Արթուր | D33: 173091952.2 | E33: 60 | F33: 24 | G33: 24 | H33: 8 | I33: 24 | U33: 2000 | V33: 13160
A34: 29 | B34: Ք.Սևան 2-Միկրո 48շ. | C34: Ա.Ձ. Մաթևոսյան Արթուր | D34: 173091952.2 | E34: 60 | F34: 24 | G34: 24 | H34: 8 | I34: 24 | U34: 2000 | V34: 13160
A35: 30 | B35: Ք.Սևան 2-Միկրո 48շ. | C35: Ա.Ձ. Մաթևոսյան Արթուր | D35: 173091952.2 | E35: 60 | F35: 24 | G35: 24 | H35: 8 | I35: 24 | U35: 2000 | V35: 13160
A36: 31 | B36: Ք.Սևան 2-Միկրո 48շ. | C36: Ա.Ձ. Մաթևոսյան Արթուր | D36: 173091952.2 | E36: 60 | F36: 24 | G36: 24 | H36: 8 | I36: 24 | U36: 2000 | V36: 13160
A37: 32 | B37: Ք.Սևան 2-Միկրո 48շ. | C37: Ա.Ձ. Մաթևոսյան Արթուր | D37: 173091952.2 | E37: 60 | F37: 24 | G37: 24 | H37: 8 | I37: 24 | U37: 2000 | V37: 13160
A38: 33 | B38: Ք.Սևան 2-Միկրո 48շ. | C38: Ա.Ձ. Մաթևոսյան Արթուր | D38: 173091952.2 | E38: 60 | F38: 24 | G38: 24 | H38: 8 | I38: 24 | U38: 2000 | V38: 13160
A39: 34 | B39: Ք.Սևան 2-Միկրո 48շ. | C39: Ա.Ձ. Մաթևոսյան Արթուր | D39: 173091952.2 | E39: 60 | F39: 24 | G39: 24 | H39: 8 | I39: 24 | U39: 2000 | V39: 13160
A40: 35 | B40: Ք.Սևան 2-Միկրո 48շ. | C40: Ա.Ձ. Մաթևոսյան Արթուր | D40: 173091952.2 | E40: 60 | F40: 24 | G40: 24 | H40: 8 | I40: 24 | U40: 2000 | V40: 13160
A41: 36 | B41: Ք.Սևան 2-Միկրո 48շ. | C41: Ա.Ձ. Մաթևոսյան Արթուր | D41: 173091952.2 | E41: 60 | F41: 24 | G41: 24 | H41: 8 | I41: 24 | U41: 2000 | V41: 13160
A42: 37 | B42: Ք.Սևան 2-Միկրո 48շ. | C42: Ա.Ձ. Մաթևոսյան Արթուր | D42: 173091952.2 | E42: 60 | F42: 24 | G42: 24 | H42: 8 | I42: 24 | U42: 2000 | V42: 13160
A43: 38 | B43: Ք.Սևան 2-Միկրո 48շ. | C43: Ա.Ձ. Մաթևոսյան Արթուր | D43: 173091952.2 | E43: 60 | F43: 24 | G43: 24 | H43: 8 | I43: 24 | U43: 2000 | V43: 13160
A44: 39 | B44: Ք.Սևան 2-Միկրո 48շ. | C44: Ա.Ձ. Մաթևոսյան Արթուր | D44: 173091952.2 | E44: 60 | F44: 24 | G44: 24 | H44: 8 | I44: 24 | U44: 2000 | V44: 13160
A45: 40 | B45: Ք.Սևան 2-Միկրո 48շ. | C45: Ա.Ձ. Մաթևոսյան Արթուր | D45: 173091952.2 | E45: 60 | F45: 24 | G45: 24 | H45: 8 | I45: 24 | U45: 2000 | V45: 13160
A46: 41 | B46: Ք.Սևան 2-Միկրո 48շ. | C46: Ա.Ձ. Մաթևոսյան Արթուր | D46: 173091952.2 | E46: 60 | F46: 24 | G46: 24 | H46: 8 | I46: 24 | U46: 2000 | V46: 13160
A47: 42 | B47: Ք.Սևան 2-Միկրո 48շ. | C47: Ա.Ձ. Մաթևոսյան Արթուր | D47: 173091952.2 | E47: 60 | F47: 24 | G47: 24 | H47: 8 | I47: 24 | U47: 2000 | V47: 13160
A48: 43 | B48: Ք.Սևան 2-Միկրո 48շ. | C48: Ա.Ձ. Մաթևոսյան Արթուր | D48: 173091952.2 | E48: 60 | F48: 24 | G48: 24 | H48: 8 | I48: 24 | U48: 2000 | V48: 13160
A49: 44 | B49: Ք.Սևան 2-Միկրո 48շ. | C49: Ա.Ձ. Մաթևոսյան Արթուր | D49: 173091952.2 | E49: 60 | F49: 24 | G49: 24 | H49: 8 | I49: 24 | U49: 2000 | V49: 13160
A50: 45 | B50: Ք.Սևան 2-Միկրո 48շ. | C50: Ա.Ձ. Մաթևոսյան Արթուր | D50: 173091952.2 | E50: 60 | F50: 24 | G50: 24 | H50: 8 | I50: 24 | U50: 2000 | V50: 13160
A51: 46 | B51: Ք.Սևան 2-Միկրո 48շ. | C51: Ա.Ձ. Մաթևոսյան Արթուր | D51: 173091952.2 | E51: 60 | F51: 24 | G51: 24 | H51: 8 | I51: 24 | U51: 2000 | V51: 13160
A52: 47 | B52: Ք.Սևան 2-Միկրո 48շ. | C52: Ա.Ձ. Մաթևոսյան Արթուր | D52: 173091952.2 | E52: 60 | F52: 24 | G52: 24 | H52: 8 | I52: 24 | U52: 2000 | V52: 13160
A53: 48 | B53: Ք.Սևան 2-Միկրո 48շ. | C53: Ա.Ձ. Մաթևոսյան Արթուր | D53: 173091952.2 | E53: 60 | F53: 24 | G53: 24 | H53: 8 | I53: 24 | U53: 2000 | V53: 13160
A54: 49 | B54: Ք.Սևան 2-Միկրո 48շ. | C54: Ա.Ձ. Մաթևոսյան Արթուր | D54: 173091952.2 | E54: 60 | F54: 24 | G54: 24 | H54: 8 | I54: 24 | U54: 2000 | V54: 13160
A55: 50 | B55: Ք.Սևան 2-Միկրո 48շ. | C55: Ա.Ձ. Մաթևոսյան Արթուր | D55: 173091952.2 | E55: 60 | F55: 24 | G55: 24 | H55: 8 | I55: 24 | U55: 2000 | V55: 13160
A56: 51 | B56: Ք.Սևան 2-Միկրո 48շ. | C56: Ա.Ձ. Մաթևոսյան Արթուր | D56: 173091952.2 | E56: 60 | F56: 24 | G56: 24 | H56: 8 | I56: 24 | U56: 2000 | V56: 13160
A57: 52 | B57: Ք.Սևան 2-Միկրո 48շ. | C57: Ա.Ձ. Մաթևոսյան Արթուր | D57: 173091952.2 | E57: 60 | F57: 24 | G57: 24 | H57: 8 | I57: 24 | U57: 2000 | V57: 13160
A58: 53 | B58: Ք.Սևան 2-Միկրո 48շ. | C58: Ա.Ձ. Մաթևոսյան Արթուր | D58: 173091952.2 | E58: 60 | F58: 24 | G58: 24 | H58: 8 | I58: 24 | U58: 2000 | V58: 13160
A59: 54 | B59: Ք.Սևան 2-Միկրո 48շ. | C59: Ա.Ձ. Մաթևոսյան Արթուր | D59: 173091952.2 | E59: 60 | F59: 24 | G59: 24 | H59: 8 | I59: 24 | U59: 2000 | V59: 13160
A60: 55 | B60: Ք.Սևան 2-Միկրո 48շ. | C60: Ա.Ձ. Մաթևոսյան Արթուր | D60: 173091952.2 | E60: 60 | F60: 24 | G60: 24 | H60: 8 | I60: 24 | U60: 2000 | V60: 13160
A61: 56 | B61: Ք.Սևան 2-Միկրո 48շ. | C61: Ա.Ձ. Մաթևոսյան Արթուր | D61: 173091952.2 | E61: 60 | F61: 24 | G61: 24 | H61: 8 | I61: 24 | U61: 2000 | V61: 13160
A62: 57 | B62: Ք.Սևան 2-Միկրո 48շ. | C62: Ա.Ձ. Մաթևոսյան Արթուր | D62: 173091952.2 | E62: 60 | F62: 24 | G62: 24 | H62: 8 | I62: 24 | U62: 2000 | V62: 13160
A63: 58 | B63: Ք.Սևան 2-Միկրո 48շ. | C63: Ա.Ձ. Մաթևոսյան Արթուր | D63: 173091952.2 | E63: 60 | F63: 24 | G63: 24 | H63: 8 | I63: 24 | U63: 2000 | V63: 13160
A64: 59 | B64: Ք.Սևան 2-Միկրո 48շ. | C64: Ա.Ձ. Մաթևոսյան Արթուր | D64: 173091952.2 | E64: 60 | F64: 24 | G64: 24 | H64: 8 | I64: 24 | U64: 2000 | V64: 13160
A65: 60 | B65: Ք.Սևան 2-Միկրո 48շ. | C65: Ա.Ձ. Մաթևոսյան Արթուր | D65: 173091952.2 | E65: 60 | F65: 24 | G65: 24 | H65: 8 | I65: 24 | U65: 2000 | V65: 13160

Sheet Гавар
B3: адресс | C3: имя фамиля | E3: лим-1,5 | F3: лим-0,5 | G3: тан-0,5 | H3: натур-сок 2 | I3: натур-сок 0.25 | J3: халодны кофе | K3: малоты кофе кг. | L3: малоты кофе Джови шт. | M3: малоты кофе Лидер шт. | N3: куруруз | O3: чипси 80 гр. | P3: чипси 200 гр. | Q3: Ади-Буди | R3: Соска | S3: Бочка | T3: Ведро
B4: Гавар | C4: Արսեն Կիրակոսյան | U4: скидка | V4: сумма
D5: ՀՎՀՀ | E5: 80 | F5: 60 | G5: 80 | H5: 500 | I5: 125
A6: 1 | B6: Ք.Գավառ Միկրո 26շ. | C6: Ա.Ձ. Մաթևոսյան Արթուր | D6: 42256545 | E6: 8 | H6: 6 | I6: 10 | U6: 2000 | V6: =SUMPRODUCT(E5:T5,E6:T6)-U6 -> 2890
A7: 2 | B7: Ք.Գավառ Միկրո 38շ. | C7: Ա.Ձ. Մաթևոսյան Արմեն | D7: 35658975 | F7: 24 | U7: 2000 | V7: =SUMPRODUCT(E6:T6,E7:T7)-U7 -> -2000
A8: 3 | B8: Ք.Գավառ Միկրո 40շ. | C8: Ա.Ձ. Սարգսյան Կարեն | D8: 25854565 | E8: 72 | F8: 48 | G8: 24 | H8: 8 | I8: 24 | U8: 2000 | V8: -848
A9: 4 | B9: Ք.Գավառ 4-Միկրո 2շ. | C9: Ա.Ձ. Կարապետյան Մարի | D9: 85456523 | F9: 24 | G9: 24 | H9: 8 | I9: 24 | U9: 2000 | V9: 368
A10: 5 | B10: Ք.Գավառ 4-Միկրո 20շ. | C10: Ա.Ձ. Մաթևոսյան Արթուր | D10: 77255533 | E10: 60 | H10: 16 | I10: 24 | U10: 2000 | V10: -1296
A11: 6 | B11: Ք.Գավառ 4-Միկրո 30շ. | C11: Ա.Ձ. Մաթևոսյան Արթուր | D11: 89235085 | E11: 48 | F11: 24 | G11: 24 | H11: 8 | I11: 60 | U11: 2000 | V11: 2448
A12: 7 | B12: Ք.Գավառ 4-Միկրո 36շ. | C12: abo | D12: 101214637.8 | E12: 50 | F12: 24 | G12: 24 | I12: 24 | U12: 2000 | V12: 2992
A13: 8 | B13: Ք.Գավառ 4-Միկրո 45շ. | C13: kbo | D13: 113194190.2 | E13: 120 | F13: 24 | G13: 60 | H13: 8 | I13: 48 | U13: 2000 | V13: 7168
A14: 9 | B14: Ք.Գավառ 2-Միկրո 16շ. | C14: mbo | D14: 125173742.6 | H14: 20 | I14: 70 | U14: 2000 | V14: 1520
A15: 10 | B15: Ք.Գավառ 2-Միկրո 20շ. | C15: Ա.Ձ. Մաթևոսյան Արթուր | D15: 137153295 | E15: 72 | F15: 48 | G15: 24 | H15: 20 | I15: 24 | U15: 2000 | V15: 80
A16: 11 | B16: Ք.Գավառ 2-Միկրո 26շ. | C16: Ա.Ձ. Մաթևոսյան Արթուր | D16: 149132847.4 | E16: 60 | F16: 24 | G16: 120 | H16: 8 | I16: 60 | U16: 2000 | V16: 7952
A17: 12 | B17: Ք.Գավառ 2-Միկրո 46շ. | C17: Ա.Ձ. Մաթևոսյան Արթուր | D17: 161112399.8 | E17: 48 | F17: 60 | G17: 24 | H17: 20 | I17: 24 | U17: 2000 | V17: 6800
A18: 13 | B18: Ք.Գավառ 2-Միկրո 48շ. | C18: Ա.Ձ. Մաթևոսյան Արթուր | D18: 173091952.2 | E18: 60 | F18: 24 | G18: 24 | H18: 8 | I18: 24 | U18: 2000 | V18: 3632
A19: 14 | B19: Ք.Գավառ 2-Միկրո 48շ. | C19: Ա.Ձ. Մաթևոսյան Արթուր | D19: 173091952.2 | E19: 60 | F19: 24 | G19: 24 | H19: 8 | I19: 24 | U19: 2000 | V19: 3392
A20: 15 | B20: Ք.Գավառ 2-Միկրո 48շ. | C20: Ա.Ձ. Մաթևոսյան Արթուր | D20: 173091952.2 | E20: 60 | F20: 24 | G20: 24 | H20: 8 | I20: 24 | U20: 2000 | V20: 3392
A21: 16 | B21: Ք.Գավառ 2-Միկրո 48շ. | C21: Ա.Ձ. Մաթևոսյան Արթուր | D21: 173091952.2 | E21: 60 | F21: 24 | G21: 24 | H21: 8 | I21: 24 | U21: 2000 | V21: 3392
A22: 17 | B22: Ք.Գավառ 2-Միկրո 48շ. | C22: Ա.Ձ. Մաթևոսյան Արթուր | D22: 173091952.2 | E22: 60 | F22: 24 | G22: 24 | H22: 8 | I22: 24 | U22: 2000 | V22: 3392
A23: 18 | B23: Ք.Գավառ 2-Միկրո 48շ. | C23: Ա.Ձ. Մաթևոսյան Արթուր | D23: 173091952.2 | E23: 60 | F23: 24 | G23: 24 | H23: 8 | I23: 24 | U23: 2000 | V23: 3392
A24: 19 | B24: Ք.Գավառ 2-Միկրո 48շ. | C24: Ա.Ձ. Մաթևոսյան Արթուր | D24: 173091952.2 | E24: 60 | F24: 24 | G24: 24 | H24: 8 | I24: 24 | U24: 2000 | V24: 3392 | AC24: тан-0,5 | AD24: kbo | AE24: 120 | AF24: 10724
A25: 20 | B25: Ք.Գավառ 2-Միկրո 48շ. | C25: Ա.Ձ. Մաթևոսյան Արթուր | D25: 173091952.2 | E25: 60 | F25: 24 | G25: 24 | H25: 8 | I25: 24 | U25: 2000 | V25: 3392
A26: 21 | B26: Ք.Գավառ 2-Միկրո 48շ. | C26: Ա.Ձ. Մաթևոսյան Արթուր | D26: 173091952.2 | E26: 60 | F26: 24 | G26: 24 | H26: 8 | I26: 24 | U26: 2000 | V26: 3392
A27: 22 | B27: Ք.Գավառ 2-Միկրո 48շ. | C27: Ա.Ձ. Մաթևոսյան Արթուր | D27: 173091952.2 | E27: 60 | F27: 24 | G27: 24 | H27: 8 | I27: 24 | U27: 2000 | V27: 3392
A28: 23 | B28: Ք.Գավառ 2-Միկրո 48շ. | C28: Ա.Ձ. Մաթևոսյան Արթուր | D28: 173091952.2 | E28: 60 | F28: 24 | G28: 24 | H28: 8 | I28: 24 | U28: 2000 | V28: 3392
A29: 24 | B29: Ք.Գավառ 2-Միկրո 48շ. | C29: Ա.Ձ. Մաթևոսյան Արթուր | D29: 173091952.2 | E29: 60 | F29: 24 | G29: 24 | H29: 8 | I29: 24 | U29: 2000 | V29: 3392
A30: 25 | B30: Ք.Գավառ 2-Միկրո 48շ. | C30: Ա.Ձ. Մաթևոսյան Արթուր | D30: 173091952.2 | E30: 60 | F30: 24 | G30: 24 | H30: 8 | I30: 24 | U30: 2000 | V30: 3392
A31: 26 | B31: Ք.Գավառ 2-Միկրո 48շ. | C31: Ա.Ձ. Մաթևոսյան Արթուր | D31: 173091952.2 | E31: 60 | F31: 24 | G31: 24 | H31: 8 | I31: 24 | U31: 2000 | V31: 3392
A32: 27 | B32: Ք.Գավառ 2-Միկրո 48շ. | C32: Ա.Ձ. Մաթևոսյան Արթուր | D32: 173091952.2 | E32: 60 | F32: 24 | G32: 24 | H32: 8 | I32: 24 | U32: 2000 | V32: 3392
A33: 28 | B33: Ք.Գավառ 2-Միկրո 48շ. | C33: Ա.Ձ. Մաթևոսյան Արթուր | D33: 173091952.2 | E33: 60 | F33: 24 | G33: 24 | H33: 8 | I33: 24 | U33: 2000 | V33: 3392
A34: 29 | B34: Ք.Գավառ 2-Միկրո 48շ. | C34: Ա.Ձ. Մաթևոսյան Արթուր | D34: 173091952.2 | E34: 60 | F34: 24 | G34: 24 | H34: 8 | I34: 24 | U34: 2000 | V34: 3392
A35: 30 | B35: Ք.Գավառ 2-Միկրո 48շ. | C35: Ա.Ձ. Մաթևոսյան Արթուր | D35: 173091952.2 | E35: 60 | F35: 24 | G35: 24 | H35: 8 | I35: 24 | U35: 2000 | V35: 3392
A36: 31 | B36: Ք.Գավառ 2-Միկրո 48շ. | C36: Ա.Ձ. Մաթևոսյան Արթուր | D36: 173091952.2 | E36: 60 | F36: 24 | G36: 24 | H36: 8 | I36: 24 | U36: 2000 | V36: 3392
A37: 32 | B37: Ք.Գավառ 2-Միկրո 48շ. | C37: Ա.Ձ. Մաթևոսյան Արթուր | D37: 173091952.2 | E37: 60 | F37: 24 | G37: 24 | H37: 8 | I37: 24 | U37: 2000 | V37: 3392
A38: 33 | B38: Ք.Գավառ 2-Միկրո 48շ. | C38: Ա.Ձ. Մաթևոսյան Արթուր | D38: 173091952.2 | E38: 60 | F38: 24 | G38: 24 | H38: 8 | I38: 24 | U38: 2000 | V38: 3392
A39: 34 | B39: Ք.Գավառ 2-Միկրո 48շ. | C39: Ա.Ձ. Մաթևոսյան Արթուր | D39: 173091952.2 | E39: 60 | F39: 24 | G39: 24 | H39: 8 | I39: 24 | U39: 2000 | V39: 3392
A40: 35 | B40: Ք.Գավառ 2-Միկրո 48շ. | C40: Ա.Ձ. Մաթևոսյան Արթուր | D40: 173091952.2 | E40: 60 | F40: 24 | G40: 24 | H40: 8 | I40: 24 | U40: 2000 | V40: 3392
A41: 36 | B41: Ք.Գավառ 2-Միկրո 48շ. | C41: Ա.Ձ. Մաթևոսյան Արթուր | D41: 173091952.2 | E41: 60 | F41: 24 | G41: 24 | H41: 8 | I41: 24 | U41: 2000 | V41: 3392
A42: 37 | B42: Ք.Գավառ 2-Միկրո 48շ. | C42: Ա.Ձ. Մաթևոսյան Արթուր | D42: 173091952.2 | E42: 60 | F42: 24 | G42: 24 | H42: 8 | I42: 24 | U42: 2000 | V42: 3392
A43: 38 | B43: Ք.Գավառ 2-Միկրո 48շ. | C43: Ա.Ձ. Մաթևոսյան Արթուր | D43: 173091952.2 | E43: 60 | F43: 24 | G43: 24 | H43: 8 | I43: 24 | U43: 2000 | V43: 3392
A44: 39 | B44: Ք.Գավառ 2-Միկրո 48շ. | C44: Ա.Ձ. Մաթևոսյան Արթուր | D44: 173091952.2 | E44: 60 | F44: 24 | G44: 24 | H44: 8 | I44: 24 | U44: 2000 | V44: 3392
A45: 40 | B45: Ք.Գավառ 2-Միկրո 48շ. | C45: Ա.Ձ. Մաթևոսյան Արթուր | D45: 173091952.2 | E45: 60 | F45: 24 | G45: 24 | H45: 8 | I45: 24 | U45: 2000 | V45: 3392
A46: 41 | B46: Ք.Գավառ 2-Միկրո 48շ. | C46: Ա.Ձ. Մաթևոսյան Արթուր | D46: 173091952.2 | E46: 60 | F46: 24 | G46: 24 | H46: 8 | I46: 24 | U46: 2000 | V46: 3392
A47: 42 | B47: Ք.Գավառ 2-Միկրո 48շ. | C47: Ա.Ձ. Մաթևոսյան Արթուր | D47: 173091952.2 | E47: 60 | F47: 24 | G47: 24 | H47: 8 | I47: 24 | U47: 2000 | V47: 3392
A48: 43 | B48: Ք.Գավառ 2-Միկրո 48շ. | C48: Ա.Ձ. Մաթևոսյան Արթուր | D48: 173091952.2 | E48: 60 | F48: 24 | G48: 24 | H48: 8 | I48: 24 | U48: 2000 | V48: 3392
A49: 44 | B49: Ք.Գավառ 2-Միկրո 48շ. | C49: Ա.Ձ. Մաթևոսյան Արթուր | D49: 173091952.2 | E49: 60 | F49: 24 | G49: 24 | H49: 8 | I49: 24 | U49: 2000 | V49: 3392
A50: 45 | B50: Ք.Գավառ 2-Միկրո 48շ. | C50: Ա.Ձ. Մաթևոսյան Արթուր | D50: 173091952.2 | E50: 60 | F50: 24 | G50: 24 | H50: 8 | I50: 24 | U50: 2000 | V50: 3392
A51: 46 | B51: Ք.Գավառ 2-Միկրո 48շ. | C51: Ա.Ձ. Մաթևոսյան Արթուր | D51: 173091952.2 | E51: 60 | F51: 24 | G51: 24 | H51: 8 | I51: 24 | U51: 2000 | V51: 3392
A52: 47 | B52: Ք.Գավառ 2-Միկրո 48շ. | C52: Ա.Ձ. Մաթևոսյան Արթուր | D52: 173091952.2 | E52: 60 | F52: 24 | G52: 24 | H52: 8 | I52: 24 | U52: 2000 | V52: 3392
A53: 48 | B53: Ք.Գավառ 2-Միկրո 48շ. | C53: Ա.Ձ. Մաթևոսյան Արթուր | D53: 173091952.2 | E53: 60 | F53: 24 | G53: 24 | H53: 8 | I53: 24 | U53: 2000 | V53: 3392
A54: 49 | B54: Ք.Գավառ 2-Միկրո 48շ. | C54: Ա.Ձ. Մաթևոսյան Արթուր | D54: 173091952.2 | E54: 60 | F54: 24 | G54: 24 | H54: 8 | I54: 24 | U54: 2000 | V54: 3392
A55: 50 | B55: Ք.Գավառ 2-Միկրո 48շ. | C55: Ա.Ձ. Մաթևոսյան Արթուր | D55: 173091952.2 | E55: 60 | F55: 24 | G55: 24 | H55: 8 | I55: 24 | U55: 2000 | V55: 3392
A56: 51 | B56: Ք.Գավառ 2-Միկրո 48շ. | C56: Ա.Ձ. Մաթևոսյան Արթուր | D56: 173091952.2 | E56: 60 | F56: 24 | G56: 24 | H56: 8 | I56: 24 | U56: 2000 | V56: 3392
A57: 52 | B57: Ք.Գավառ 2-Միկրո 48շ. | C57: Ա.Ձ. Մաթևոսյան Արթուր | D57: 173091952.2 | E57: 60 | F57: 24 | G57: 24 | H57: 8 | I57: 24 | U57: 2000 | V57: 3392
A58: 53 | B58: Ք.Գավառ 2-Միկրո 48շ. | C58: Ա.Ձ. Մաթևոսյան Արթուր | D58: 173091952.2 | E58: 60 | F58: 24 | G58: 24 | H58: 8 | I58: 24 | U58: 2000 | V58: 3392
A59: 54 | B59: Ք.Գավառ 2-Միկրո 48շ. | C59: Ա.Ձ. Մաթևոսյան Արթուր | D59: 173091952.2 | E59: 60 | F59: 24 | G59: 24 | H59: 8 | I59: 24 | U59: 2000 | V59: 3392
A60: 55 | B60: Ք.Գավառ 2-Միկրո 48շ. | C60: Ա.Ձ. Մաթևոսյան Արթուր | D60: 173091952.2 | E60: 60 | F60: 24 | G60: 24 | H60: 8 | I60: 24 | U60: 2000 | V60: 3392
A61: 56 | B61: Ք.Գավառ 2-Միկրո 48շ. | C61: Ա.Ձ. Մաթևոսյան Արթուր | D61: 173091952.2 | E61: 60 | F61: 24 | G61: 24 | H61: 8 | I61: 24 | U61: 2000 | V61: 3392
A62: 57 | B62: Ք.Գավառ 2-Միկրո 48շ. | C62: Ա.Ձ. Մաթևոսյան Արթուր | D62: 173091952.2 | E62: 60 | F62: 24 | G62: 24 | H62: 8 | I62: 24 | U62: 2000 | V62: 3392
A63: 58 | B63: Ք.Գավառ 2-Միկրո 48շ. | C63: Ա.Ձ. Մաթևոսյան Արթուր | D63: 173091952.2 | E63: 60 | F63: 24 | G63: 24 | H63: 8 | I63: 24 | U63: 2000 | V63: 3392
A64: 59 | B64: Ք.Գավառ 2-Միկրո 48շ. | C64: Ա.Ձ. Մաթևոսյան Արթուր | D64: 173091952.2 | E64: 60 | F64: 24 | G64: 24 | H64: 8 | I64: 24 | U64: 2000 | V64: 3392
A65: 60 | B65: Ք.Գավառ 2-Միկրո 48շ. | C65: Ա.Ձ. Մաթևոսյան Արթուր | D65: 173091952.2 | E65: 60 | F65: 24 | G65: 24 | H65: 8 | I65: 24 | U65: 2000 | V65: 3392

Sheet Варденис
B3: адресс | C3: имя фамиля | E3: лим-1,5 | F3: лим-0,5 | G3: тан-0,5 | H3: натур-сок 2 | I3: натур-сок 0.25 | J3: халодны кофе | K3: малоты кофе кг. | L3: малоты кофе Джови шт. | M3: малоты кофе Лидер шт. | N3: куруруз | O3: чипси 80 гр. | P3: чипси 200 гр. | Q3: Ади-Буди | R3: Соска | S3: Бочка | T3: Ведро
B4: Варденис | C4: Արսեն Կիրակոսյան | U4: скидка | V4: сумма
D5: ՀՎՀՀ | E5: 80 | F5: 60 | G5: 80 | H5: 500 | I5: 125
A6: 1 | B6: Ք.Վարդենիս թաղ 26շ. | C6: Ա.Ձ. Մաթևոսյան Արթուր | D6: 42256545 | E6: 8 | H6: 6 | I6: 10 | U6: 2000 | V6: =SUMPRODUCT($E$5:$T$5,E6:T6)-U6 -> 2890
A7: 2 | B7: Ք.Վարդենիս թաղ 38շ. | C7: Ա.Ձ. Մաթևոսյան Արմեն | D7: 35658975 | F7: 24 | G7: 80 | U7: 2000 | V7: =SUMPRODUCT($E$5:$T$5,E7:T7)-U7 -> 5840
A8: 3 | B8: Ք.Վարդենիս թաղ 40շ. | C8: Ա.Ձ. Սարգսյան Կարեն | D8: 25854565 | E8: 72 | F8: 48 | G8: 24 | H8: 8 | I8: 24 | U8: 2000 | V8: 15560
A9: 4 | B9: Ք.Վարդենիս 4-թաղ 2շ. | C9: Ա.Ձ. Կարապետյան Մարի | D9: 85456523 | F9: 24 | G9: 24 | H9: 8 | I9: 24 | U9: 2000 | V9: 8360
A10: 5 | B10: Ք.Վարդենիս 4-թաղ 20շ. | C10: Ա.Ձ. Մաթևոսյան Արթուր | D10: 77255533 | E10: 60 | H10: 16 | I10: 24 | U10: 2000 | V10: 13800
A11: 6 | B11: Ք.Վարդենիս 4-թաղ 30շ. | C11: Ա.Ձ. Մաթևոսյան Արթուր | D11: 89235085 | E11: 48 | F11: 24 | G11: 24 | H11: 8 | I11: 60 | U11: 2000 | V11: 16700
A12: 7 | B12: Ք.Վարդենիս 4-թաղ 36շ. | C12: abo | D12: 101214637.8 | E12: 50 | F12: 24 | G12: 24 | I12: 24 | U12: 2000 | V12: 8360
A13: 8 | B13: Ք.Վարդենիս 4-թաղ 45շ. | C13: kbo | D13: 113194190.2 | E13: 120 | F13: 24 | G13: 60 | H13: 8 | I13: 48 | U13: 2000 | V13: 23840
A14: 9 | B14: Ք.Վարդենիս 2-թաղ 16շ. | C14: mbo | D14: 125173742.6 | H14: 20 | I14: 70 | U14: 2000 | V14: 16750
A15: 10 | B15: Ք.Վարդենիս 2-թաղ 20շ. | C15: Ա.Ձ. Մաթևոսյան Արթուր | D15: 137153295 | E15: 72 | F15: 48 | G15: 24 | H15: 20 | I15: 24 | U15: 2000 | V15: 21560
A16: 11 | B16: Ք.Վարդենիս 2-թաղ 26շ. | C16: Ա.Ձ. Մաթևոսյան Արթուր | D16: 149132847.4 | E16: 60 | F16: 24 | G16: 120 | H16: 8 | I16: 60 | U16: 2000 | V16: 25340
A17: 12 | B17: Ք.Վարդենիս 2-թաղ 46շ. | C17: Ա.Ձ. Մաթևոսյան Արթուր | D17: 161112399.8 | E17: 48 | F17: 60 | G17: 24 | H17: 20 | I17: 24 | U17: 2000 | V17: 20360
A18: 13 | B18: Ք.Վարդենիս 2-թաղ 48շ. | C18: Ա.Ձ. Մաթևոսյան Արթուր | D18: 173091952.2 | E18: 60 | F18: 24 | G18: 24 | H18: 8 | I18: 24 | U18: 2000 | V18: 13160
A19: 14 | B19: Ք.Վարդենիս 2-թաղ 48շ. | C19: Ա.Ձ. Մաթևոսյան Արթուր | D19: 173091952.2 | E19: 60 | F19: 24 | G19: 24 | H19: 8 | I19: 24 | U19: 2000 | V19: 13160
A20: 15 | B20: Ք.Վարդենիս 2-թաղ 48շ. | C20: Ա.Ձ. Մաթևոսյան Արթուր | D20: 173091952.2 | E20: 60 | F20: 24 | G20: 24 | H20: 8 | I20: 24 | U20: 2000 | V20: 13160
A21: 16 | B21: Ք.Վարդենիս 2-թաղ 48շ. | C21: Ա.Ձ. Մաթևոսյան Արթուր | D21: 173091952.2 | E21: 60 | F21: 24 | G21: 24 | H21: 8 | I21: 24 | U21: 2000 | V21: 13160
A22: 17 | B22: Ք.Վարդենիս 2-թաղ 48շ. | C22: Ա.Ձ. Մաթևոսյան Արթուր | D22: 173091952.2 | E22: 60 | F22: 24 | G22: 24 | H22: 8 | I22: 24 | U22: 2000 | V22: 13160
A23: 18 | B23: Ք.Վարդենիս 2-թաղ 48շ. | C23: Ա.Ձ. Մաթևոսյան Արթուր | D23: 173091952.2 | E23: 60 | F23: 24 | G23: 24 | H23: 8 | I23: 24 | U23: 2000 | V23: 13160
A24: 19 | B24: Ք.Վարդենիս 2-թաղ 48շ. | C24: Ա.Ձ. Մաթևոսյան Արթուր | D24: 173091952.2 | E24: 60 | F24: 24 | G24: 24 | H24: 8 | I24: 24 | U24: 2000 | V24: 13160 | AC24: тан-0,5 | AD24: kbo | AE24: 120 | AF24: 10724
A25: 20 | B25: Ք.Վարդենիս 2-թաղ 48շ. | C25: Ա.Ձ. Մաթևոսյան Արթուր | D25: 173091952.2 | E25: 60 | F25: 24 | G25: 24 | H25: 8 | I25: 24 | U25: 2000 | V25: 13160
A26: 21 | B26: Ք.Վարդենիս 2-թաղ 48շ. | C26: Ա.Ձ. Մաթևոսյան Արթուր | D26: 173091952.2 | E26: 60 | F26: 24 | G26: 24 | H26: 8 | I26: 24 | U26: 2000 | V26: 13160
A27: 22 | B27: Ք.Վարդենիս 2-թաղ 48շ. | C27: Ա.Ձ. Մաթևոսյան Արթուր | D27: 173091952.2 | E27: 60 | F27: 24 | G27: 24 | H27: 8 | I27: 24 | U27: 2000 | V27: 13160
A28: 23 | B28: Ք.Վարդենիս 2-թաղ 48շ. | C28: Ա.Ձ. Մաթևոսյան Արթուր | D28: 173091952.2 | E28: 60 | F28: 24 | G28: 24 | H28: 8 | I28: 24 | U28: 2000 | V28: 13160
A29: 24 | B29: Ք.Վարդենիս 2-թաղ 48շ. | C29: Ա.Ձ. Մաթևոսյան Արթուր | D29: 173091952.2 | E29: 60 | F29: 24 | G29: 24 | H29: 8 | I29: 24 | U29: 2000 | V29: 13160
A30: 25 | B30: Ք.Վարդենիս 2-թաղ 48շ. | C30: Ա.Ձ. Մաթևոսյան Արթուր | D30: 173091952.2 | E30: 60 | F30: 24 | G30: 24 | H30: 8 | I30: 24 | U30: 2000 | V30: 13160
A31: 26 | B31: Ք.Վարդենիս 2-թաղ 48շ. | C31: Ա.Ձ. Մաթևոսյան Արթուր | D31: 173091952.2 | E31: 60 | F31: 24 | G31: 24 | H31: 8 | I31: 24 | U31: 2000 | V31: 13160
A32: 27 | B32: Ք.Վարդենիս 2-թաղ 48շ. | C32: Ա.Ձ. Մաթևոսյան Արթուր | D32: 173091952.2 | E32: 60 | F32: 24 | G32: 24 | H32: 8 | I32: 24 | U32: 2000 | V32: 13160
A33: 28 | B33: Ք.Վարդենիս 2-թաղ 48շ. | C33: Ա.Ձ. Մաթևոսյան Արթուր | D33: 173091952.2 | E33: 60 | F33: 24 | G33: 24 | H33: 8 | I33: 24 | U33: 2000 | V33: 13160
A34: 29 | B34: Ք.Վարդենիս 2-թաղ 48շ. | C34: Ա.Ձ. Մաթևոսյան Արթուր | D34: 173091952.2 | E34: 60 | F34: 24 | G34: 24 | H34: 8 | I34: 24 | U34: 2000 | V34: 13160
A35: 30 | B35: Ք.Վարդենիս 2-թաղ 48շ. | C35: Ա.Ձ. Մաթևոսյան Արթուր | D35: 173091952.2 | E35: 60 | F35: 24 | G35: 24 | H35: 8 | I35: 24 | U35: 2000 | V35: 13160
A36: 31 | B36: Ք.Վարդենիս 2-թաղ 48շ. | C36: Ա.Ձ. Մաթևոսյան Արթուր | D36: 173091952.2 | E36: 60 | F36: 24 | G36: 24 | H36: 8 | I36: 24 | U36: 2000 | V36: 13160
A37: 32 | B37: Ք.Վարդենիս 2-թաղ 48շ. | C37: Ա.Ձ. Մաթևոսյան Արթուր | D37: 173091952.2 | E37: 60 | F37: 24 | G37: 24 | H37: 8 | I37: 24 | U37: 2000 | V37: 13160
A38: 33 | B38: Ք.Վարդենիս 2-թաղ 48շ. | C38: Ա.Ձ. Մաթևոսյան Արթուր | D38: 173091952.2 | E38: 60 | F38: 24 | G38: 24 | H38: 8 | I38: 24 | U38: 2000 | V38: 13160
A39: 34 | B39: Ք.Վարդենիս 2-թաղ 48շ. | C39: Ա.Ձ. Մաթևոսյան Արթուր | D39: 173091952.2 | E39: 60 | F39: 24 | G39: 24 | H39: 8 | I39: 24 | U39: 2000 | V39: 13160
A40: 35 | B40: Ք.Վարդենիս 2-թաղ 48շ. | C40: Ա.Ձ. Մաթևոսյան Արթուր | D40: 173091952.2 | E40: 60 | F40: 24 | G40: 24 | H40: 8 | I40: 24 | U40: 2000 | V40: 13160
A41: 36 | B41: Ք.Վարդենիս 2-թաղ 48շ. | C41: Ա.Ձ. Մաթևոսյան Արթուր | D41: 173091952.2 | E41: 60 | F41: 24 | G41: 24 | H41: 8 | I41: 24 | U41: 2000 | V41: 13160
A42: 37 | B42: Ք.Վարդենիս 2-թաղ 48շ. | C42: Ա.Ձ. Մաթևոսյան Արթուր | D42: 173091952.2 | E42: 60 | F42: 24 | G42: 24 | H42: 8 | I42: 24 | U42: 2000 | V42: 13160
A43: 38 | B43: Ք.Վարդենիս 2-թաղ 48շ. | C43: Ա.Ձ. Մաթևոսյան Արթուր | D43: 173091952.2 | E43: 60 | F43: 24 | G43: 24 | H43: 8 | I43: 24 | U43: 2000 | V43: 13160
A44: 39 | B44: Ք.Վարդենիս 2-թաղ 48շ. | C44: Ա.Ձ. Մաթևոսյան Արթուր | D44: 173091952.2 | E44: 60 | F44: 24 | G44: 24 | H44: 8 | I44: 24 | U44: 2000 | V44: 13160
A45: 40 | B45: Ք.Վարդենիս 2-թաղ 48շ. | C45: Ա.Ձ. Մաթևոսյան Արթուր | D45: 173091952.2 | E45: 60 | F45: 24 | G45: 24 | H45: 8 | I45: 24 | U45: 2000 | V45: 13160
A46: 41 | B46: Ք.Վարդենիս 2-թաղ 48շ. | C46: Ա.Ձ. Մաթևոսյան Արթուր | D46: 173091952.2 | E46: 60 | F46: 24 | G46: 24 | H46: 8 | I46: 24 | U46: 2000 | V46: 13160
A47: 42 | B47: Ք.Վարդենիս 2-թաղ 48շ. | C47: Ա.Ձ. Մաթևոսյան Արթուր | D47: 173091952.2 | E47: 60 | F47: 24 | G47: 24 | H47: 8 | I47: 24 | U47: 2000 | V47: 13160
A48: 43 | B48: Ք.Վարդենիս 2-թաղ 48շ. | C48: Ա.Ձ. Մաթևոսյան Արթուր | D48: 173091952.2 | E48: 60 | F48: 24 | G48: 24 | H48: 8 | I48: 24 | U48: 2000 | V48: 13160
A49: 44 | B49: Ք.Վարդենիս 2-թաղ 48շ. | C49: Ա.Ձ. Մաթևոսյան Արթուր | D49: 173091952.2 | E49: 60 | F49: 24 | G49: 24 | H49: 8 | I49: 24 | U49: 2000 | V49: 13160
A50: 45 | B50: Ք.Վարդենիս 2-թաղ 48շ. | C50: Ա.Ձ. Մաթևոսյան Արթուր | D50: 173091952.2 | E50: 60 | F50: 24 | G50: 24 | H50: 8 | I50: 24 | U50: 2000 | V50: 13160
A51: 46 | B51: Ք.Վարդենիս 2-թաղ 48շ. | C51: Ա.Ձ. Մաթևոսյան Արթուր | D51: 173091952.2 | E51: 60 | F51: 24 | G51: 24 | H51: 8 | I51: 24 | U51: 2000 | V51: 13160
A52: 47 | B52: Ք.Վարդենիս 2-թաղ 48շ. | C52: Ա.Ձ. Մաթևոսյան Արթուր | D52: 173091952.2 | E52: 60 | F52: 24 | G52: 24 | H52: 8 | I52: 24 | U52: 2000 | V52: 13160
A53: 48 | B53: Ք.Վարդենիս 2-թաղ 48շ. | C53: Ա.Ձ. Մաթևոսյան Արթուր | D53: 173091952.2 | E53: 60 | F53: 24 | G53: 24 | H53: 8 | I53: 24 | U53: 2000 | V53: 13160
A54: 49 | B54: Ք.Վարդենիս 2-թաղ 48շ. | C54: Ա.Ձ. Մաթևոսյան Արթուր | D54: 173091952.2 | E54: 60 | F54: 24 | G54: 24 | H54: 8 | I54: 24 | U54: 2000 | V54: 13160
A55: 50 | B55: Ք.Վարդենիս 2-թաղ 48շ. | C55: Ա.Ձ. Մաթևոսյան Արթուր | D55: 173091952.2 | E55: 60 | F55: 24 | G55: 24 | H55: 8 | I55: 24 | U55: 2000 | V55: 13160
A56: 51 | B56: Ք.Վարդենիս 2-թաղ 48շ. | C56: Ա.Ձ. Մաթևոսյան Արթուր | D56: 173091952.2 | E56: 60 | F56: 24 | G56: 24 | H56: 8 | I56: 24 | U56: 2000 | V56: 13160
A57: 52 | B57: Ք.Վարդենիս 2-թաղ 48շ. | C57: Ա.Ձ. Մաթևոսյան Արթուր | D57: 173091952.2 | E57: 60 | F57: 24 | G57: 24 | H57: 8 | I57: 24 | U57: 2000 | V57: 13160
A58: 53 | B58: Ք.Վարդենիս 2-թաղ 48շ. | C58: Ա.Ձ. Մաթևոսյան Արթուր | D58: 173091952.2 | E58: 60 | F58: 24 | G58: 24 | H58: 8 | I58: 24 | U58: 2000 | V58: 13160
A59: 54 | B59: Ք.Վարդենիս 2-թաղ 48շ. | C59: Ա.Ձ. Մաթևոսյան Արթուր | D59: 173091952.2 | E59: 60 | F59: 24 | G59: 24 | H59: 8 | I59: 24 | U59: 2000 | V59: 13160
A60: 55 | B60: Ք.Վարդենիս 2-թաղ 48շ. | C60: Ա.Ձ. Մաթևոսյան Արթուր | D60: 173091952.2 | E60: 60 | F60: 24 | G60: 24 | H60: 8 | I60: 24 | U60: 2000 | V60: 13160
A61: 56 | B61: Ք.Վարդենիս 2-թաղ 48շ. | C61: Ա.Ձ. Մաթևոսյան Արթուր | D61: 173091952.2 | E61: 60 | F61: 24 | G61: 24 | H61: 8 | I61: 24 | U61: 2000 | V61: 13160
A62: 57 | B62: Ք.Վարդենիս 2-թաղ 48շ. | C62: Ա.Ձ. Մաթևոսյան Արթուր | D62: 173091952.2 | E62: 60 | F62: 24 | G62: 24 | H62: 8 | I62: 24 | U62: 2000 | V62: 13160
A63: 58 | B63: Ք.Վարդենիս 2-թաղ 48շ. | C63: Ա.Ձ. Մաթևոսյան Արթուր | D63: 173091952.2 | E63: 60 | F63: 24 | G63: 24 | H63: 8 | I63: 24 | U63: 2000 | V63: 13160
A64: 59 | B64: Ք.Վարդենիս 2-թաղ 48շ. | C64: Ա.Ձ. Մաթևոսյան Արթուր | D64: 173091952.2 | E64: 60 | F64: 24 | G64: 24 | H64: 8 | I64: 24 | U64: 2000 | V64: 13160
A65: 60 | B65: Ք.Վարդենիս 2-թաղ 48շ. | C65: Ա.Ձ. Մաթևոսյան Արթուր | D65: 173091952.2 | E65: 60 | F65: 24 | G65: 24 | H65: 8 | I65: 24 | U65: 2000 | V65: 13160
